Cogmind - Beta 17.1 @@@ ROGUE MODE // 2026.09.13 @ 21:16:01 Player: H3-MLN Result: Escaped! Performance ------------- Evolutions (9) 4500 Regions Visited (36) 7200 Robots Destroyed (782) 3910 Value Destroyed (42237) 42237 Prototype IDs (103) 2060 Alien Tech Used (15) 3000 Bonus (35375) 35375 TOTAL SCORE: 98282 Bonus ------- Triggered High Security 1500 High Alert Combat Kills 13793 Follower Combat Kills 6658 Hunted by Unchained 500 Destroyed Unchained 1000 Entered Garrisons 1000 Network Hubs Disabled 400 Aligned with FarCom 300 Met Imprinter 300 Acquired ECA 300 Met Warlord at Base 500 MAIN.C Attacked Warlord 500 Warlord Defense Kills 1436 MAIN.C Attacked Proxy Base 500 Built Enhanced Grunts 300 A7 Reached Mainframe 300 Met R17 at Cetus 500 Met Warlord at Research 2000 Invited to Help at Command 2000 Scanned by Researcher 1000 Pursued by Intercept 1500 Win 3000 Friendly Fire -3912 Cogmind --------- Core Integrity 200/1600 Matter 62/925 Energy 1508/1550 System Corruption 11% Temperature Cool (12) Movement Treading (160) Location To Epsilon Eridani Parts ------- > --- POWER (3) -------- Improved Quantum Reactor Vortex Chain Reactor > --- PROPULSION (6) --- High-density Centrium Heavy Treads (fused) High-density Centrium Heavy Treads (fused) High-density Centrium Heavy Treads > --- UTILITY (10) ----- Huge Storage Unit Experimental Energy Well (fused) Experimental Matter Compressor Experimental Optical Array Experimental Core Analyzer Advanced Weapon Cycler Experimental Phase Shifter Centrium Heavy Armor Plating Experimental Force Field > --- WEAPON (6) ------- Enhanced Nova Cannon 1B-0RG's Assimilator > --- INVENTORY (27) --- Biometal Heavy Treads High-density Centrium Heavy Treads Experimental Energy Well (600) Advanced Kinecellerator Thermal Barrier Experimental EM Shield Transdimensional Reconstructor High-powered Transdimensional Reconstructor Compact HERF Cannon Enhanced Nova Cannon Linked Autogun Enhanced Hardcell Cannon Graviton Cannon Advanced Micro-nuke Launcher Advanced Micro-nuke Launcher CPS Tube (1) Vortex Lance (36) Peak State ------------ > --- POWER ------------ Improved Quantum Reactor Vortex Chain Reactor > --- PROPULSION ------- High-density Centrium Heavy Treads High-density Centrium Heavy Treads High-density Centrium Heavy Treads > --- UTILITY ---------- Coolant Network Huge Storage Unit Experimental Matter Compressor Experimental Optical Array Experimental Core Analyzer Advanced Weapon Cycler Centrium Heavy Armor Plating Experimental Force Field > --- WEAPON ----------- Multirail 1B-0RG's Assimilator > --- INVENTORY -------- Vortex Chain Reactor Armored Heavy Treads Advanced Heavy Treads High-density Centrium Heavy Treads Experimental Energy Well Thermal Barrier Experimental EM Shield Transdimensional Reconstructor Transdimensional Reconstructor High-powered Transdimensional Reconstructor Integrity Redistributor Integrated Dissipator Integrated Dissipator Subatomic Replicator Terrabomb Compact HERF Cannon Enhanced Nova Cannon Enhanced Hardcell Cannon Graviton Cannon Advanced Micro-nuke Launcher Advanced Micro-nuke Launcher CPS Tube Vortex Lance [Rating: 277] Favorites ----------- Power Quantum Reactor Engine Light Angular Momentum Engine Power Core Nuclear Core Reactor Quantum Reactor Propulsion Light Treads Treads Light Treads Utility Huge Storage Unit Device Tactical Coordination Suite Storage Huge Storage Unit Processor Experimental Core Analyzer Hackware Ghost Barrier Protection Medium Regenerative Plating Artifact Phase Redirector Weapon Heavy Assault Rifle Energy Gun Lightning Gun Energy Cannon Enhanced Nova Cannon Ballistic Gun Heavy Assault Rifle Ballistic Cannon Graviton Cannon Launcher Mini Grenade Launcher Special Weapon Advanced Remote Datajack Impact Weapon Shock Maul Slashing Weapon Sigix Broadsword Piercing Weapon CR-A16's Pointy Stick Special Melee Weapon 1B-0RG's Assimilator Build | -11 -10 -10 -9 -9 -9 -8 -8 -8 -8 -8 -8 -8 -8 -6 -6 -6 -6 -6 -5 -5 -5 -5 -5 -5 -5 -5 -4 -4 -4 -4 -3 -3 -3 -3 -2 -1 ------- Run | Yrd Mat Min Mat Min Exi Min Mat Gar Mat Sto Gar Rec Scr Fac Gar Fac Low Zio Pro Fac Gar Ext Cet Arc Hub Gar Fac Upp Upp War Pro Res Qua Sec Res Acc Slots Evolved 18 | . . . 2 . . . 2 . . . . . . 4 . . . . . 2 . . . . . . 2 . . . . 2 . . 2 2 Power 2 | . . . . . . . . . . . . . . 1 . . . . . . . . . . . . . . . . . 1 . . . . Propulsion 4 | . . . 1 . . . 1 . . . . . . 1 . . . . . 1 . . . . . . . . . . . . . . . . Utility 8 | . . . . . . . . . . . . . . 2 . . . . . 1 . . . . . . 2 . . . . 1 . . . 2 Weapon 4 | . . . 1 . . . 1 . . . . . . . . . . . . . . . . . . . . . . . . . . . 2 . Parts Attached 329 | 9 4 3 17 3 11 2 13 13 15 14 5 . 3 6 24 11 9 2 1 4 9 3 17 4 13 15 4 . . 10 3 13 40 9 9 11 Power 48 | 2 . . 1 2 1 . 2 1 1 1 1 . . . 6 2 1 . 1 . 2 . 5 . 2 5 . . . 1 . . 8 2 . 1 Engine 17 | 2 . . 1 2 . . 2 1 . 1 . . . . 3 1 1 . . . . . . . . 1 . . . . . . 2 . . . Core 7 | . . . . . 1 . . . 1 . 1 . . . 3 1 . . . . . . . . . . . . . . . . . . . . Reactor 24 | . . . . . . . . . . . . . . . . . . . 1 . 2 . 5 . 2 4 . . . 1 . . 6 2 . 1 Propulsion 62 | 2 . . 4 . 3 . 4 5 3 8 3 . 2 1 5 3 1 . . 1 3 . 3 . 1 1 . . . . . 2 6 . 1 . Treads 62 | 2 . . 4 . 3 . 4 5 3 8 3 . 2 1 5 3 1 . . 1 3 . 3 . 1 1 . . . . . 2 6 . 1 . Leg . | . . . . . . . . . . . . . . . . . . . . . . . . . . . . . . . . . . . . . Wheel . | . . . . . . . . . . . . . . . . . . . . . . . . . . . . . . . . . . . . . Hover . | . . . . . . . . . . . . . . . . . . . . . . . . . . . . . . . . . . . . . Flight . | . . . . . . . . . . . . . . . . . . . . . . . . . . . . . . . . . . . . . Utility 92 | 2 2 . 4 . 1 . 2 . 1 3 . . . 3 6 1 3 1 . 2 . 3 5 4 3 4 4 . . 6 2 5 13 3 2 7 Device 50 | 1 . . . . . . 1 . . 1 . . . 1 2 1 3 1 . 1 . 2 2 4 2 4 2 . . 4 2 2 8 1 1 4 Storage 14 | 1 1 . 3 . . . . . 1 . . . . . 1 . . . . . . . 1 . . . 1 . . . . . 2 2 . 1 Processor 9 | . . . 1 . . . . . . . . . . 1 1 . . . . . . 1 . . . . 1 . . 2 . 1 . . 1 . Hackware 6 | . . . . . . . 1 . . 1 . . . . . . . . . 1 . . . . 1 . . . . . . 2 . . . . Protection 12 | . 1 . . . 1 . . . . 1 . . . 1 2 . . . . . . . 2 . . . . . . . . . 2 . . 2 Artifact 1 | . . . . . . . . . . . . . . . . . . . . . . . . . . . . . . . . . 1 . . . Weapon 127 | 3 2 3 8 1 6 2 5 7 10 2 1 . 1 2 7 5 4 1 . 1 4 . 4 . 7 5 . . . 3 1 6 13 4 6 3 Energy Gun 33 | 2 . . . . . . 4 3 1 . . . . 2 4 2 2 1 . . 2 . 2 . . . . . . . . 4 2 2 . . Energy Cannon 16 | . 1 . . . . 1 . . . . . . . . . . . . . . 2 . 1 . . 2 . . . 1 . 1 3 2 2 . Ballistic Gun 41 | 1 . 2 8 1 1 . . 2 7 2 1 . 1 . 2 . 2 . . . . . 1 . 7 1 . . . . 1 . . . . 1 Ballistic Cannon 7 | . . . . . 1 . . . . . . . . . . . . . . . . . . . . 1 . . . . . 1 3 . 1 . Launcher 14 | . 1 1 . . 2 1 1 . 2 . . . . . 1 1 . . . . . . . . . . . . . . . . 1 . 2 1 Special Weapon 4 | . . . . . . . . . . . . . . . . . . . . . . . . . . 1 . . . 1 . . 2 . . . Impact Weapon 2 | . . . . . . . . . . . . . . . . 1 . . . . . . . . . . . . . . . . 1 . . . Slashing Weapon 4 | . . . . . . . . 2 . . . . . . . 1 . . . . . . . . . . . . . . . . 1 . . . Piercing Weapon 4 | . . . . . 1 . . . . . . . . . . . . . . 1 . . . . . . . . . 1 . . . . 1 . Special Melee Weapon 2 | . . . . . 1 . . . . . . . . . . . . . . . . . . . . . . . . . . . . . . 1 Unidentified Prototypes 61 | . . . 1 . . . . . . 1 . . . . . 1 . 1 . . . . 7 . 3 4 1 . . 6 . 4 17 5 2 8 Corrupted Parts 5 | . . . . . . . . . . . . . . . . . . . . . . . 3 . 1 . . . . . . . . 1 . . System Corruption 22 | . . . . . . . . . . . . . . . . . . . . . . . 12 . 1 . . . . . . . . 9 . . Parts Lost 80 | . . . 1 1 7 2 2 9 2 1 . . . . 4 11 . . . . 2 2 2 . 1 2 1 . 1 2 . 7 10 5 1 4 Power 12 | . . . . 1 . . 1 . 1 . . . . . . 2 . . . . . 1 . . 1 1 . . . . . . 2 1 . 1 Propulsion 18 | . . . . . 2 . . 3 1 . . . . . 2 4 . . . . . . 2 . . . . . . . . 1 3 . . . Utility 12 | . . . 1 . . . . . . 1 . . . . . . . . . . . . . . . 1 1 . . . . 1 3 1 . 3 Weapon 38 | . . . . . 5 2 1 6 . . . . . . 2 5 . . . . 2 1 . . . . . . 1 2 . 5 2 3 1 . Highest Loss Streak 9 | . . . 1 1 5 1 1 2 1 1 . . . . 1 9 . . . . 1 1 3 . 1 1 1 . 1 1 . 2 5 3 1 2 To Critical Strikes 6 | . . . . . 2 . . 1 . . . . . . . . . . . . . . 2 . . . . . . . . . . 1 . . Average Backups 21 | 1 10 15 23 25 20 19 20 20 20 20 23 24 22 20 21 22 15 21 21 20 18 20 23 22 22 22 20 20 19 21 21 22 21 18 19 22 Power . | . 1 1 . . . . . . . . . . . . . . . . . . . . . 1 . . 1 1 1 1 1 . . 1 1 . Propulsion 2 | . . 1 4 5 4 4 3 2 1 1 3 3 3 2 1 2 . 1 1 . . 1 1 2 1 1 2 2 2 2 2 2 . 1 1 2 Utility 8 | . 2 2 7 9 8 11 10 10 10 9 9 9 9 9 10 9 8 10 9 8 8 8 10 7 8 9 7 7 7 9 10 10 7 6 4 4 Weapon 7 | . 5 9 9 9 5 3 5 5 9 9 11 12 9 7 7 8 4 7 8 8 6 7 7 8 8 6 6 7 6 6 6 7 7 3 2 7 Tool/Special . | . . . . . . . . . . . . . . . . . . . . . . . . . . . . . . . . . . . . . Unused Backups 82 | . 4 . 11 2 10 . 3 2 4 2 . . 1 . 2 2 . . 2 . 4 . 5 . 1 1 . . . 2 1 2 5 2 1 13 Power 8 | . 1 . 1 . 3 . 1 . . . . . . . . . . . . . . . . . . . . . . . 1 . 1 . . . Propulsion 19 | . . . 4 1 2 . 1 . . 2 . . . . . . . . . . . . 2 . . 1 . . . . . 1 . . . 5 Utility 29 | . 2 . 2 . 4 . . . 2 . . . . . 1 . . . 2 . 4 . 2 . 1 . . . . 1 . . 3 2 . 3 Weapon 21 | . 1 . 4 1 . . 1 2 2 . . . 1 . 1 2 . . . . . . 1 . . . . . . 1 . 1 1 . . 2 Tool/Special 5 | . . . . . 1 . . . . . . . . . . . . . . . . . . . . . . . . . . . . . 1 3 Average Slot Usage (%) 81 | . 99 100 99 99 99 93 98 93 99 99 72 72 85 91 89 63 77 67 66 68 76 64 63 58 81 80 83 84 83 78 77 79 74 74 73 62 Engine 4 | . 14 14 11 10 7 . 6 9 6 8 . . . . 3 . 9 13 11 5 . . . . . 1 . . . . . . 1 . . . Core 1 | . . . . . 3 11 1 . 1 . 8 9 9 6 5 11 . . . . . . . . . . . . . . . . . . . . Reactor 4 | . . . . . . . . . . . . . . . . . . . 1 5 9 11 11 11 10 8 10 10 10 6 5 9 8 8 8 8 Treads 23 | . 27 28 32 33 33 33 36 35 36 35 36 36 36 33 29 19 16 20 20 22 18 17 16 17 17 17 15 15 15 15 15 13 12 14 13 12 Device 8 | . 4 . . . . . 7 9 9 7 . . . . 4 4 12 13 13 16 17 15 10 5 10 10 11 15 15 18 21 20 19 18 17 13 Storage 7 | . 14 14 11 11 11 11 9 9 9 9 9 9 9 6 6 6 6 6 6 5 5 5 5 5 5 5 5 5 5 5 5 4 4 4 4 7 Processor 6 | . . . 10 11 5 . . . . . . . . 4 6 7 6 6 6 5 5 6 11 11 11 11 13 10 10 7 5 4 9 9 8 8 Protection 2 | . 9 14 . . 5 11 1 . . 1 8 9 9 12 5 . . . . . . . . . . . 4 5 5 4 5 3 1 . . 6 Energy Gun 4 | . 6 . . . . . 34 15 6 5 . . . 2 9 5 15 6 6 4 9 4 1 . . . . . . . . 5 2 1 4 . Energy Cannon 1 | . 5 . . . . 1 . . . . . . . . . . . . . . 5 . . . . 1 . . 4 6 5 1 3 10 11 3 Ballistic Gun 11 | . 14 24 32 33 17 . . 4 24 30 9 9 21 23 12 . 4 . . . . . 3 . 22 20 21 21 15 11 14 9 1 . . . Peak Build Rating 277 | 9 10 9 22 24 36 49 48 54 37 42 58 58 58 54 100 100 89 110 98 120 141 143 153 152 152 155 168 162 163 172 172 192 210 219 239 277 Average Rating 102 | 5 8 8 20 23 26 34 44 36 34 38 57 58 48 49 66 95 82 96 96 107 130 131 137 116 144 147 158 162 162 165 169 184 176 212 226 269 On Entrance 97 | . 9 8 9 22 24 36 31 45 32 37 38 58 58 40 54 100 89 88 96 98 109 130 134 152 152 149 145 162 162 163 154 172 187 210 219 239 Avg Prop Armor Cover (%) 34 | . . . . . . . . . . . . . . . . 12 . . . . . . . 38 . . . . . . . . 8 . . . Naked Turns . | . . . . . . . . . . . . . . . . . . . . . . . . . . . . . . . . . . . . . Heaviest Build 254 | 15 33 33 96 99 105 119 111 112 105 109 111 110 110 123 254 180 122 125 132 133 161 146 142 142 147 151 148 144 151 183 172 197 208 195 216 241 Greatest Support 270 | 40 40 40 69 69 69 69 92 90 80 83 83 83 85 105 178 178 170 170 170 198 230 230 240 240 240 240 235 235 235 235 235 235 270 270 270 270 Greatest Overweight (x) 41 | . . . 1 1 1 1 1 1 1 1 1 1 1 1 2 1 . . . . . . 1 41 . . . . . . . 1 4 . 1 . Average Overweight (x) . | . . . . 1 . 1 1 1 1 1 1 1 1 . . . . . . . . . . 13 . . . . . . . . . . . . Largest Inventory Capacity 30 | 8 15 15 25 25 25 25 25 25 25 25 25 25 25 25 30 30 25 25 25 25 25 25 25 25 25 25 25 25 25 25 25 25 25 27 27 27 Average Capacity 24 | 7 14 15 23 25 22 25 25 25 25 25 25 25 25 25 25 29 25 25 25 25 25 25 25 25 25 25 25 25 25 25 25 25 25 25 27 27 Most Carried 30 | 3 15 15 25 25 25 25 25 25 25 25 25 25 25 25 30 30 21 25 25 25 25 25 25 25 25 25 25 24 24 25 25 25 25 27 27 27 Average Carried 24 | 1 10 14 23 24 20 23 24 24 24 24 24 25 24 24 25 29 18 24 24 24 24 23 24 24 24 24 24 24 23 24 23 24 24 25 26 25 Final Capacity 30 | 8 15 15 25 25 25 25 25 25 25 25 25 25 25 25 30 25 25 25 25 25 25 25 25 25 25 25 25 25 25 25 25 25 25 27 27 27 Final Carried 30 | 3 15 15 25 25 25 23 25 25 25 25 25 25 25 25 30 18 21 25 25 25 23 23 25 25 25 25 24 24 23 25 24 25 25 27 27 20 Class Distribution -------------------- 41% | Scavenger-Tank 16% | Gunner 12% | Scavenger-Mutant 8% | Scavenger-Gunner 8% | Mutant 3% | Tank 3% | Hauler-Tank Dominant Class ---------------- Mutant | -10/Materials Mutant | -10/Mines Gunner | -9/Materials Gunner | -9/Mines Mutant | -9/Exiles Tank | -8/Mines Gunner | -8/Materials Scavenger-Gunner | -8/Garrison Scavenger-Gunner | -8/Materials Scavenger-Gunner | -8/Storage Scavenger-Tank | -8/Garrison Scavenger-Tank | -8/Recycling Scavenger-Tank | -8/Scraptown Scavenger-Tank | -6/Factory Scavenger-Tank | -6/Garrison Hauler-Tank | -6/Factory Scavenger-Tank | -6/Lower Caves Scavenger-Tank | -6/Zion Scavenger-Tank | -5/Proximity Caves Scavenger-Tank | -5/Factory Scavenger-Tank | -5/Garrison Commander-Tank | -5/Extension Scavenger-Gunner | -5/Cetus Scavenger-Mutant | -5/Archives Scavenger-Tank | -5/Hub_04(d) Scavenger-Tank | -5/Garrison Commander-Gunner | -4/Factory Scavenger-Tank | -4/Upper Caves Scavenger-Tank | -4/Upper Caves Scavenger-Tank | -4/Warlord Scavenger-Tank | -3/Proximity Caves Scavenger-Tank | -3/Research Scavenger-Mutant | -3/Quarantine Scavenger-Tank | -3/Section 7 Scavenger-Executioner | -2/Research Scavenger-Mutant | -1/Access Resources | -11 -10 -10 -9 -9 -9 -8 -8 -8 -8 -8 -8 -8 -8 -6 -6 -6 -6 -6 -5 -5 -5 -5 -5 -5 -5 -5 -4 -4 -4 -4 -3 -3 -3 -3 -2 -1 ----------- Run | Yrd Mat Min Mat Min Exi Min Mat Gar Mat Sto Gar Rec Scr Fac Gar Fac Low Zio Pro Fac Gar Ext Cet Arc Hub Gar Fac Upp Upp War Pro Res Qua Sec Res Acc Matter Collected 27049 | 293 257 157 1587 89 1126 136 349 315 758 846 745 30 65 . 1367 63 299 81 20 245 448 1108 629 320 945 1974 582 161 184 701 211 903 2395 1759 568 5333 Remotely . | . . . . . . . . . . . . . . . . . . . . . . . . . . . . . . . . . . . . . Salvage Created 39046 | 99 359 148 1939 153 471 261 1181 1140 1383 1222 682 111 . . 2047 1648 305 30 865 455 1428 3496 454 539 1818 1861 1396 402 406 646 411 2265 1959 3976 612 2878 Parts 1918 | 6 22 11 142 11 62 11 59 50 77 63 45 5 . . 92 74 15 4 25 12 45 152 26 33 92 109 64 26 19 26 20 95 116 175 24 110 Haulers Intercepted 20 | . 1 . 6 . . . 3 . 2 3 . . . . . 1 . . . . 1 . . . 1 . . . . . . . . . 2 . Recyclers Shooed 8 | . . . 2 . . . . . . 1 . . . . . 1 . . . 1 . . . . 1 . . . . . . . . . . 2 Parts Field Recycled . | . . . . . . . . . . . . . . . . . . . . . . . . . . . . . . . . . . . . . Retrieved Matter . | . . . . . . . . . . . . . . . . . . . . . . . . . . . . . . . . . . . . . Parts Self-Destructed 102 | . . . . . . . . . . . . . . . . . . . 33 . . . . . . . . 31 19 . 19 . . . . . Prevented 75 | . . . . . . . . . . . . . . . . . . . 75 . . . . . . . . . . . . . . . . . Parts Restored . | . . . . . . . . . . . . . . . . . . . . . . . . . . . . . . . . . . . . . Kills | -11 -10 -10 -9 -9 -9 -8 -8 -8 -8 -8 -8 -8 -8 -6 -6 -6 -6 -6 -5 -5 -5 -5 -5 -5 -5 -5 -4 -4 -4 -4 -3 -3 -3 -3 -2 -1 ------- Run | Yrd Mat Min Mat Min Exi Min Mat Gar Mat Sto Gar Rec Scr Fac Gar Fac Low Zio Pro Fac Gar Ext Cet Arc Hub Gar Fac Upp Upp War Pro Res Qua Sec Res Acc Combat Hostiles Destroyed 601 | . 7 8 35 5 5 6 23 35 29 20 16 . . . 26 24 . 1 13 3 21 54 5 3 20 33 20 16 5 14 5 29 31 54 4 31 Melee 24 | . . . . . . . 2 8 1 . . . . . . 5 . . . . . 1 . . . . . . . 1 . . . 2 . 4 Guns 337 | . 7 2 26 5 1 . 9 4 19 20 16 . . . 16 10 . 1 12 3 12 46 5 3 20 29 20 16 3 1 3 23 2 2 1 . Cannons 88 | . . . . . . 2 . . . . . . . . . 1 . . . . 6 1 . . . 4 . . . 4 2 5 24 24 2 13 AOE 100 | . . 6 9 . 4 4 11 18 9 . . . . . 8 6 . . . . . 5 . . . . . . . 2 . . 2 7 . 9 Classes Destroyed 35 | 2 5 1 3 . 3 . 1 4 1 . 1 . . . 1 1 1 . 3 . 1 . . . 1 1 . . . . 1 . 2 1 . 1 Worker 28 | . . . 4 . . . 6 . 1 2 . . . . . 2 . . . . . 3 . . . . . . . . . 1 4 5 . . Builder 31 | . 1 . 2 . . 2 2 . 2 . . . . . . 3 . . . . . 2 . . 4 . 1 . . . . 1 5 2 . 4 Tunneler 5 | 1 . . . . . . 2 . . . . . . . . . . . . . . 1 . . . . . . . . . . . . . 1 Hauler 20 | . 1 . 6 . . . 3 . 2 3 . . . . . 1 . . . . 1 . . . 1 . . . . . . . . . 2 . Recycler 29 | 1 1 1 4 . . . 2 . 2 1 . . . . . 2 . . . 2 . 1 . . . . . . . . . . 3 2 . 7 Carrier 1 | . . . . . . . . . . . . . . . . . . . . . . . . . 1 . . . . . . . . . . . Minesweeper 1 | . . . . . . . . . . . . . . . . . . . . . . . . . . . . . . . 1 . . . . . Mechanic 3 | . . . . . . . . . . . . . . . . . . . . . . . . . . . . . . . . . 2 . . 1 Operator 15 | . . . 3 . . . . . 1 . . . . . . . . . . . . . . 8 1 . . . . . . . . 2 . . Turret 1 | . . . . . 1 . . . . . . . . . . . . . . . . . . . . . . . . . . . . . . . Watcher 26 | . 1 . 4 . . . 5 . . 1 . . . . . 2 . . . 1 . 1 1 . 2 2 1 . . . . 1 3 . . 1 Swarmer 110 | . 3 6 12 3 . . 14 12 3 3 4 . . . 6 . . . . . 3 . . . . 11 . 16 . 1 . 4 3 5 . 1 Cutter 6 | . . . . . . . . . . . . . . . 6 . . . . . . . . . . . . . . . . . . . . . Saboteur 11 | . . . . . . . . . . . . . . . . . . . 3 . . 1 . . 1 . 1 . . 4 . . . . . 1 Grunt 194 | . 4 1 14 2 . 5 2 12 19 6 5 . . . 6 11 . . 7 1 8 26 . . 9 4 4 . 2 3 . 9 3 23 . 8 Brawler 16 | . . . . . . . . 1 . 1 . . . . . 1 . . 2 . . 2 . . 1 3 1 . . 3 . . . . . 1 Duelist 16 | . . . . . . . 1 1 2 1 1 . . . . 1 . . . 1 . 4 . . . . 3 . . . . . . . . 1 Protector 7 | . . . . . . . . . 1 . . . . . . 1 . . . . . 3 . . . . 1 . . 1 . . . . . . Researcher 7 | . . . . . . . . . . . . . . . . . . . . . . . . . . . . . . . . . 4 3 . . Sentry 68 | . . . 9 . . . 6 3 3 8 2 . . . 4 3 . . 1 . 3 7 . 3 2 1 3 . 1 . . 4 . 4 1 . Demolisher 5 | . . 1 . . . . . . . . . . . . . . . . . . . . . . . . 2 . . 1 . 1 . . . . Specialist 9 | . . . . . . . . 1 . . 3 . . . 1 . . . . . . . . . 2 1 1 . . . . . . . . . Hunter 41 | . . . . . . . . 3 1 1 . . . . 2 1 . . . 1 . 3 . . 1 2 . . . . 2 4 10 4 3 3 Programmer 62 | . . . . . . . . . . . 1 . . . . 5 . . . . 2 4 . . . 10 3 . 1 . 2 3 13 11 . 7 Heavy 4 | . . . . . . . . . . . . . . . . 1 . . . . . . . . 1 . 1 . . . . . . . . 1 Q-Series 2 | . . . . . . . . . . . . . . . . . . . . . . . . . . . . . . . . . . . . 2 Behemoth 11 | . . . . . . . . 2 . . . . . . 1 . . . . . 1 2 . . . . . . 1 . 1 1 . 1 . 1 Cetus Guard 5 | . . . . . . . . . . . . . . . . . . . . . . . 5 . . . . . . . . . . . . . S7 Guard 1 | . . . . . . . . . . . . . . . . . . . . . . . . . . . . . . . . . . 1 . . Enhanced Grunt 2 | . . . . . . . . . . . . . . . . . . . . . . . . . 2 . . . . . . . . . . . Lightning 3 | . . . . . . . . . . . . . . . . . . . . . . . . . 3 . . . . . . . . . . . Tracker 4 | . . . . . . . . . . . . . . . . . . . . . . . . . . . . . . . . . . 1 . 3 Combat Programmer 3 | . . . . . . . . . . . . . . . . . . . . . . . . . . . . . . . . . . . . 3 Striker 3 | . . . . . . . . . . . . . . . . . . . . . . . . . . 1 . . . . . 2 . . . . Executioner 5 | . . . . . . . . . . . . . . . . . . . . . 1 . . . . . . . . 1 . 1 . 2 . . Alpha 7 2 | . . . . . . . . . . . . . . . . . . . . . . . . . . . . . . . . . . 2 . . Fortress 1 | . . . . . . . . . . . . . . . . . . . . . . . . . . . . . . . . . 1 . . . Zionite 7 | . . . . . 7 . . . . . . . . . . . . . . . . . . . . . . . . . . . . . . . Tinkerer 1 | . . . . . . . . . . . . . . . . . . . 1 . . . . . . . . . . . . . . . . . Assembled 7 | . . . . . 4 . . . . . . . . . . . . . . . 3 . . . . . . . . . . . . . . . Surgeon 1 | . . . . . . . . . . . . . . . . . . . 1 . . . . . . . . . . . . . . . . . Thug 4 | . . . . . . . . . . . . . . . . . 3 . . . . . . . . 1 . . . . . . . . . . Savage 1 | . . . . . . . . . . . . . . . . . . . 1 . . . . . . . . . . . . . . . . . Butcher 1 | . . . . . . . . . . . . . . . . . . . . . . 1 . . . . . . . . . . . . . . Guerrilla 1 | . . . . . . . . . . . . . . . . . . . . . . 1 . . . . . . . . . . . . . . Mutant 1 | . . . . . . . . . . . . . . . . . 1 . . . . . . . . . . . . . . . . . . . Commander 1 | . . . . . . . . . . . . . . . . . 1 . . . . . . . . . . . . . . . . . . . Best Kill Streak 16 | 1 3 3 6 2 4 5 7 6 7 6 5 . . . 6 9 . 1 4 2 4 13 4 5 9 4 7 5 2 7 3 8 10 16 3 10 Combat Bots Only 13 | . 3 3 4 2 4 3 7 6 7 6 5 . . . 6 6 . 1 4 1 4 13 3 2 4 4 7 5 2 7 2 8 6 11 3 8 Max Kills in Single Turn 5 | 1 2 3 4 2 2 2 2 4 2 2 2 . . . 2 4 1 1 2 1 2 5 2 1 4 3 3 3 1 2 1 2 1 3 1 2 Gunslinging 2 | . . . 1 1 . . 1 . . 1 . . . . . . . . . . 1 . . . . 2 1 2 . . . . . . . . Exploded 5 | . . 3 3 . 2 1 2 4 2 . . . . . 2 3 . . . . . 5 . . . . . . . 2 . . 1 3 . 2 Melee 1 | . . . . . . . 1 1 1 . . . . . . 1 . . . . . 1 . . . . . . . 1 . . . 1 . 1 Uniques/NPCs Destroyed 8 | . . . . . 4 1 . . . . . . . . . . . 1 . . . . 1 . . . . . . . . . 1 . . . 8R-AWN (-9/Exiles) EX-BIN (-9/Exiles) EX-DEC (-9/Exiles) EX-HEX (-9/Exiles) CL-ANK (-8/Mines) Imprinter (-6/Zion) A7 (-5/Cetus) 1B-0RG (-3/Quarantine) Combat | -11 -10 -10 -9 -9 -9 -8 -8 -8 -8 -8 -8 -8 -8 -6 -6 -6 -6 -6 -5 -5 -5 -5 -5 -5 -5 -5 -4 -4 -4 -4 -3 -3 -3 -3 -2 -1 -------- Run | Yrd Mat Min Mat Min Exi Min Mat Gar Mat Sto Gar Rec Scr Fac Gar Fac Low Zio Pro Fac Gar Ext Cet Arc Hub Gar Fac Upp Upp War Pro Res Qua Sec Res Acc Hostile Shots Fired 3736 | . 44 16 94 9 103 23 51 132 69 73 17 . . . 191 231 1 . 20 16 82 150 9 3 50 112 50 28 26 49 45 205 375 711 18 733 Missed 1087 | . 12 5 26 2 24 5 18 32 18 19 4 . . . 62 71 . . 6 5 30 35 3 2 14 29 20 14 10 14 21 66 94 183 6 237 Hits 2649 | . 32 11 68 7 79 18 33 100 51 54 13 . . . 129 160 1 . 14 11 52 115 6 1 36 83 30 14 16 35 24 139 281 528 12 496 Melee 63 | . . . 2 . . . . 7 1 5 . . . . 6 14 1 . . 4 . 1 . . . . . . . 4 . 10 6 . . 2 Projectile 2586 | . 32 11 66 7 79 18 33 93 50 49 13 . . . 123 146 . . 14 7 52 114 6 1 36 83 30 14 16 31 24 129 275 528 12 494 AOE 18 | . . 1 . . . . . . . . . . . . 3 . . . . . . . . . . . 3 . . 8 . 1 . . . 2 Critical Strikes 182 | . . . 3 . 35 1 1 5 1 3 . . . . 1 5 . . 3 1 3 8 2 . 2 8 2 2 2 4 . 5 23 27 . 35 Actively Blocked 30 | . . . . . . . . . . . . . . . . . . . . . . . . . . . . 2 2 . . 4 21 . . 1 Part Disruptions 7 | . . . . . . . . . . . . . . . . . . . . . . . . . . . 1 . . . . 2 4 . . . Damage Taken 40096 | . 337 149 893 69 1412 360 477 1853 913 702 252 . . . 2133 3135 . . 285 274 1201 2362 93 28 1195 1185 598 215 441 977 359 2902 4736 4950 125 5485 Core 4005 | . 70 9 81 12 237 13 49 197 95 118 38 . . . 187 513 . . 16 . 113 179 . . 52 123 7 14 45 45 53 232 308 327 9 863 Absorbed by Shields 9662 | . . . . . . . . . . 128 . . . . 110 . . . . . . 210 88 . . . . . . 168 106 243 . 3282 135 5192 Reduced by Siege Mode 482 | . . . . . . . . . . . . . . . . . . . . . 17 . . . 78 3 . . . 10 19 96 39 216 . 4 Redirected to Core 57 | . . . . . . . . . . . . . . . . . . . . . . . . . . . . . . . . . 57 . . . Redirected to Shielding 399 | . . . . . . . . . . . . . . . . . . . . . . . . . . . . . . . . . 151 . . 248 Ignored by Resistances 7976 | . . . . . . . . . . . . . . . 9 . . . . . . . . . 80 513 60 . . . 108 292 1848 3182 . 1884 Regen/Repaired (Parts) 8888 | . 88 . 303 . . . . . . 124 . . . . . . . 999 50 . . . 1 . . . 273 28 140 229 97 1060 429 2002 . 3065 Core Remaining (%) 47 | 100 . 68 . . . 14 . . . . . . 9 . . . . . 15 . . . . . . 53 . . . . 85 . . 16 99 12 Volleys Fired 1872 | 2 42 11 98 6 108 13 47 50 57 55 34 3 . 3 111 11 11 2 22 17 67 96 27 14 50 115 30 10 14 41 12 92 141 208 21 231 Largest 5 | 2 2 2 3 3 3 2 4 4 4 4 1 1 . 1 4 3 2 1 1 1 4 2 1 1 4 4 4 4 4 2 4 4 4 4 5 1 Hottest 467 | 90 80 80 69 69 90 100 220 220 150 153 60 60 . 28 324 204 170 250 250 250 390 250 240 60 195 195 113 113 198 155 228 287 218 359 467 120 Shots Fired 3837 | 4 82 16 282 18 179 21 124 100 180 214 34 3 . 3 225 58 22 2 22 17 149 100 26 14 192 341 120 40 50 52 44 259 211 359 45 229 Gun 2820 | 4 61 9 276 18 160 . 115 82 171 214 34 3 . 3 206 53 22 2 22 17 101 92 26 14 188 312 120 40 37 14 32 231 77 53 11 . Cannon 885 | . 19 1 . . 2 6 . 6 . . . . . . . 3 . . . . 48 4 . . 4 28 . . 13 37 12 28 128 301 34 211 Launcher 128 | . 2 6 6 . 17 15 9 12 9 . . . . . 19 2 . . . . . 4 . . . . . . . . . . 4 5 . 18 Special 4 | . . . . . . . . . . . . . . . . . . . . . . . . . . 1 . . . 1 . . 2 . . . Kinetic 2227 | 1 40 9 276 18 157 4 . 10 137 182 34 3 . 3 124 4 . 1 . 9 . 44 25 14 188 312 120 40 37 14 32 130 155 98 6 . Thermal 856 | 2 40 1 . . . 2 . 28 34 32 . . . . 82 50 22 1 22 8 66 52 1 . 4 16 . . 13 14 12 76 22 46 15 195 Explosive 122 | . 2 6 6 . 17 9 9 12 9 . . . . . 19 2 . . . . . 4 . . . . . . . . . . 4 5 . 18 Electromagnetic 591 | 1 . . . . 5 6 115 50 . . . . . . . 2 . . . . 83 . . . . 12 . . . 23 . 53 15 186 24 16 Entropic 37 | . . . . . . . . . . . . . . . . . . . . . . . . . . . . . . . . . 13 24 . . Robot Hit Streak 29 | 3 13 4 23 15 27 8 14 12 15 11 8 3 . . 20 8 16 5 15 11 18 29 11 7 13 17 17 4 11 14 16 27 21 19 8 11 Robot Miss Streak 16 | . 4 2 3 2 3 4 4 2 5 5 4 2 . . 8 10 1 2 16 12 9 7 2 3 5 4 3 3 3 3 1 3 4 3 3 5 Penetration Max 2 | . . . . . . . . . . . . . . . 1 . . . . . . . . . 1 1 2 1 . 1 1 1 . . . . Secondary Targets 52 | . 2 . 4 1 . . 2 3 2 4 . . . . 3 . . . . . 1 . . . 4 10 7 7 . . . 2 . . . . Max Gunslinging Chain 2 | . 1 . 1 1 . . 1 1 1 1 . . . . 1 . . . . . 1 . . . 1 2 2 2 . . . 1 . . . . Capacitor 12 | . . . . . . . . . . . . . . . . . . . . . . . . . . . . . . . . . 12 . . . Autonomous 49 | . . . . . . . . . . . . . . . 1 48 . . . . . . . . . . . . . . . . . . . . Shots Hit Robots 2533 | 3 52 5 202 14 147 13 71 72 118 117 22 2 . . 160 61 25 2 22 8 82 97 25 25 97 176 86 22 29 31 32 174 139 236 20 146 Core Hits 1584 | 3 17 15 85 6 51 20 41 49 62 43 20 2 . . 77 50 10 3 56 15 49 209 33 26 72 83 49 16 10 25 14 76 72 116 15 94 Critical Kills 38 | . . . . . . . . 2 1 . . . . . 3 3 . . . . 1 . . . 7 2 5 3 2 . 1 1 2 2 . 3 Critical Parts Destroyed 25 | . 1 . . . 1 . . . . . . . . . 7 2 . . . . . . . . 5 5 1 1 . . 2 . . . . . Critical Strikes 137 | . 4 . . . 3 . 1 4 6 3 . . . . 28 5 5 . . . 3 . . 1 12 10 7 4 2 7 4 4 12 8 . 4 Burn 34 | . 3 . . . . . . 1 5 3 . . . . 15 . 5 . . . 1 . . . . . . . . . . 1 . . . . Meltdown 12 | . . . . . . . . 2 . . . . . . . . . . . . 1 . . . . . . . 2 . . . 2 2 . 3 Destroy 51 | . 1 . . . 1 . . . 1 . . . . . 10 . . . . . . . . . 12 8 7 4 . . 4 3 . . . . Blast 10 | . . . . . . . . . . . . . . . . . . . . . . . . . . . . . . . . . 7 3 . . Corrupt 12 | . . . . . . . . . . . . . . . . . . . . . 1 . . . . 2 . . . 7 . . . 2 . . Smash 5 | . . . . . . . . . . . . . . . . 5 . . . . . . . . . . . . . . . . . . . . Sever 1 | . . . . . . . . 1 . . . . . . . . . . . . . . . . . . . . . . . . . . . . Impale 7 | . . . . . 2 . 1 . . . . . . . 3 . . . . . . . . 1 . . . . . . . . . . . . Sunder 5 | . . . . . . . . . . . . . . . . . . . . . . . . . . . . . . . . . 3 1 . 1 Melee Attacks 205 | . . . . . 21 . 6 25 3 . . . . 4 49 33 8 . . 1 . . . 11 . . . . . . . 6 12 4 . 22 Kinetic 1 | . . . . . . . . . . . . . . . . . . . . . . . . . . . . . . . . . 1 . . . Impact 28 | . . . . . . . . . . . . . . . . 28 . . . . . . . . . . . . . . . . . . . . Slashing 28 | . . . . . . . . 5 3 . . . . . . 1 8 . . . . . . . . . . . . . . . 11 . . . Piercing 112 | . . . . . 17 . 6 20 . . . . . 4 49 4 . . . 1 . . . 11 . . . . . . . . . . . . Entropic 32 | . . . . . . . . . . . . . . . . . . . . . . . . . . . . . . . . 6 . 4 . 22 Sneak Attacks 41 | . . . . . 7 . 4 . 2 . . . . . . 7 6 . . . . . . 10 . . . . . . . . 5 . . . Combat Hostiles 1 | . . . . . . . . . . . . . . . . . . . . . . . . . . . . . . . . . 1 . . . Follow-up Attacks . | . . . . . . . . . . . . . . . . . . . . . . . . . . . . . . . . . . . . . Damage Inflicted 103285 | 38 720 421 3563 216 2682 820 2713 3563 3314 2258 1130 51 . . 4682 4353 852 185 1992 597 3349 10039 1753 1624 3500 4698 2254 506 859 2413 1082 5500 8436 11559 784 10779 Guns 50810 | 38 503 69 3023 216 1714 . 1432 881 1998 2226 1130 51 . . 2096 1522 342 185 1992 597 2249 8594 1753 906 2495 4183 2236 506 511 353 566 4844 711 650 238 . Cannons 26851 | . 207 . . . 13 139 . 580 . . . . . . . 93 . . . . 1100 132 . . 43 515 . . 348 1433 502 647 5772 8905 546 5876 Explosions 16394 | . . 329 516 . 412 681 840 1534 1154 . . . . . 1111 1148 . . . . . 1187 . . 960 . . . . 627 . . 864 1527 . 3504 Melee 8432 | . . . . . 543 . 291 568 149 . . . . . 1475 1590 510 . . . . . . 718 . . . . . . . . 1047 228 . 1313 Ramming 798 | . 10 23 24 . . . 150 . 13 32 . . . . . . . . . . . 126 . . 2 . 18 . . . 14 9 42 249 . 86 Kinetic 37261 | 12 380 69 3023 216 1723 59 . 119 1458 1734 1130 51 . . 986 196 . 56 . . . 3114 1753 906 2495 4183 2236 506 511 353 566 2387 4752 2247 40 . Thermal 27401 | 13 330 . . . . 80 74 1208 540 492 . . . . 1110 1495 342 129 1992 597 2271 5612 . . 43 93 . . 348 754 502 1909 666 1280 170 5351 Explosive 14013 | . . 329 516 . 412 486 766 1105 1154 . . . . . 1111 1052 . . . . . 1187 . . . . . . . . . . 864 1527 . 3504 Electromagnetic 13415 | 13 . . . . 4 195 1432 563 . . . . . . . 20 . . . . 1078 . . . 960 422 . . . 1306 . 1195 379 4749 574 525 Impact 1390 | . . . . . . . . . . . . . . . . 1390 . . . . . . . . . . . . . . . . . . . . Slashing 1866 | . . . . . . . . 147 149 . . . . . . 30 510 . . . . . . . . . . . . . . . 1030 . . . Piercing 3618 | . . . . . 543 . 291 421 . . . . . . 1475 170 . . . . . . . 718 . . . . . . . . . . . . Entropic 3523 | . . . . . . . . . . . . . . . . . . . . . . . . . . . . . . . . . 703 1507 . 1313 Highest Corruption 23 | . . . . . . 1 . . . . . . . . . 1 1 1 . . 2 6 18 18 7 8 1 1 4 4 2 5 8 23 . 11 Average Corruption 5 | . . . . . . 1 . . . . . . . . . 1 1 1 . . 1 2 14 11 4 7 1 1 2 2 2 4 3 11 . 4 Corruption Purged 23 | . . . . . . . . . . . . . . . . . . . . . . . . 18 . . . . . . . . 5 . . . Corruption Blocked . | . . . . . . . . . . . . . . . . . . . . . . . . . . . . . . . . . . . . . Effects 361 | . . . . . . . . . . . . . . . . 6 5 1 . . 17 23 20 21 8 81 2 12 7 2 3 10 30 95 . 18 Message Errors 70 | . . . . . . . . . . . . . . . . 3 1 . . . 5 2 6 6 1 15 . 4 2 . 1 1 10 8 . 5 Matter Fused 80 | . . . . . . . . . . . . . . . . 1 . 1 . . 6 6 4 5 2 18 1 1 3 . 1 4 4 20 . 3 Heat Flow Errors 39 | . . . . . . . . . . . . . . . . 1 1 . . . 2 4 2 2 2 8 1 3 . . 1 . 2 9 . 1 Energy Discharges 48 | . . . . . . . . . . . . . . . . . 2 . . . 2 4 3 2 1 14 . . 1 . . 2 3 11 . 3 Parts Rejected 8 | . . . . . . . . . . . . . . . . . . . . . . . . . . 2 . . . 1 . . 1 3 . 1 Parts Fused 7 | . . . . . . . . . . . . . . . . . . . . . . . . . . 2 . . . . . . . 4 . 1 Data Loss (minor) 43 | . . . . . . . . . . . . . . . . 1 1 . . . 1 3 3 4 1 7 . 2 1 1 . . 4 13 . 1 Data Loss (major) 14 | . . . . . . . . . . . . . . . . . . . . . 1 2 1 1 . 3 . 2 . . . . . 4 . . Misfires 16 | . . . . . . . . . . . . . . . . . . . . . . 2 . . 1 2 . . . . . . 5 6 . . Alerts 11 | . . . . . . . . . . . . . . . . . . . . . . . . 1 . 4 . . . . . . 1 4 . 1 Misdirections 4 | . . . . . . . . . . . . . . . . . . . . . . . . . . . . . . . . . . 4 . . Weapon Failures 21 | . . . . . . . . . . . . . . . . . . . . . . . 1 . . 6 . . . . . 3 . 9 . 2 Overload Shots 10 | . . . . . . . . . . . . . . . . . . . . . . . 1 . . . . . . . . 9 . . . . Effects 1 | . . . . . . . . . . . . . . . . . . . . . . . . . . . . . . . . 1 . . . . Energy Bleed 1 | . . . . . . . . . . . . . . . . . . . . . . . . . . . . . . . . 1 . . . . Overflow Damage 2603 | . 19 . 4 . 69 . 103 109 63 . . . . . 68 523 45 . . . 15 32 . 150 25 7 . . 11 44 4 . 698 289 . 325 Projectiles 930 | . 19 . . . . . . . . . . . . . . . . . . . 15 . . . . 7 . . 11 44 . . 567 166 . 101 Explosions 747 | . . . 4 . 12 . 71 96 29 . . . . . 60 . . . . . . 32 . . 25 . . . . . . . 120 83 . 215 Melee 926 | . . . . . 57 . 32 13 34 . . . . . 8 523 45 . . . . . . 150 . . . . . . 4 . 11 40 . 9 Knockbacks 56 | . . . . . . 2 1 . . . . . . . . 8 . . . . . 3 . . . . 1 . . . . . 25 15 . 1 Impact 15 | . . . . . . . 1 . . . . . . . . 8 . . . . . 3 . . . . 1 . . . . . . 1 . 1 Kinetic 36 | . . . . . . 2 . . . . . . . . . . . . . . . . . . . . . . . . . . 22 12 . . Secondary 5 | . . . . . . . . . . . . . . . . . . . . . . . . . . . . . . . . . 3 2 . . Self-Inflicted Damage 1307 | . . 26 23 . 5 61 77 95 129 . . . . . 17 201 . . . . . 17 . . 124 . . . . . . . 83 154 . 295 Shots 38 | . . 2 1 . 1 4 3 3 3 . . . . . 1 3 . . . . . 1 . . 2 . . . . . . . 3 3 . 8 Rammed 58 | . 3 6 4 . . . 10 . 2 1 . . . . . . . . . . . 4 . . 1 . 1 . . . 1 1 4 16 . 4 Targets Rammed 68 | . 3 6 4 . . . 15 . 2 2 . . . . . . . . . . . 5 . . 1 . 2 . . . 1 1 4 18 . 4 Kicked . | . . . . . . . . . . . . . . . . . . . . . . . . . . . . . . . . . . . . . Crushed 10 | . . . . . . . 5 . . 1 . . . . . . . . . . . 1 . . . . 1 . . . . . . 2 . . Highest Temperature 485 | 30 150 12 39 12 141 169 322 187 215 376 300 41 . . 485 347 225 32 167 102 217 260 244 221 288 310 106 153 374 264 375 418 221 163 307 364 Average Temperature 77 | 12 48 8 8 4 32 60 84 45 58 91 69 24 . . 150 99 39 17 43 34 97 86 68 47 87 72 47 41 174 80 134 107 34 56 123 68 Received Heat Transfer 6493 | . 117 18 318 27 20 171 108 519 342 256 36 . . . 321 783 . . 87 27 324 571 . 9 180 90 87 . 27 32 27 289 651 693 . 363 Effects 24 | . . . . . . . 1 . . 4 . . . . 7 . . . . . . 2 . . 1 . . . 3 . 1 2 3 . . . Shutdowns 4 | . . . . . . . . . . . . . . . 3 . . . . . . . . . . . . . . . . 1 . . . . Energy Bleed 2 | . . . . . . . . . . . . . . . . . . . . . . . . . 1 . . . . . 1 . . . . . Interference 15 | . . . . . . . 1 . . 2 . . . . 3 . . . . . . 2 . . . . . . 3 . . 1 3 . . . Matter Decay 1 | . . . . . . . . . . 1 . . . . . . . . . . . . . . . . . . . . . . . . . . Damage (minor) 2 | . . . . . . . . . . 1 . . . . 1 . . . . . . . . . . . . . . . . . . . . . Siege Activations 21 | . . . . . . . . . . . . . . . . . . . . . 2 . . . 2 2 1 . 1 3 2 3 2 2 . 1 Total Turns 554 | . . . . . . . . . . . . . . . . . . . . . 34 . . . 158 20 7 . 3 108 32 73 14 87 . 18 Longest Duration 147 | . . . . . . . . . . . . . . . . . . . . . 29 . . . 147 12 7 . 3 64 27 32 11 50 . 18 Martial Activations . | . . . . . . . . . . . . . . . . . . . . . . . . . . . . . . . . . . . . . Shielding Activations . | . . . . . . . . . . . . . . . . . . . . . . . . . . . . . . . . . . . . . Robots Disrupted 1 | . . . . . . . . . . . . . . . . . . . . . 1 . . . . . . . . . . . . . . . Combat Hostiles . | . . . . . . . . . . . . . . . . . . . . . . . . . . . . . . . . . . . . . Robots Corrupted 46 | . . . . . . . 3 2 . . . . . . . 6 . . . . 1 . . . 3 . . . . 6 1 1 1 18 1 3 Combat Hostiles 34 | . . . . . . . 1 2 . . . . . . . 2 . . . . . . . . . . . . . 6 . 1 1 18 1 2 Parts Fried 110 | . . . . . . 1 18 5 . . . . . . . 9 . . . . 8 . 2 . 6 5 . . . 3 1 6 1 33 3 9 Impact Corruptions 18 | . . . . . . . 2 . . . . . . . . 12 . . . . . . . . . . . . . . 1 . 1 1 . 1 Robots Melted 20 | . . . . . . . . 3 . . . . . . 3 . . . 1 . 3 1 . . . . . . 2 . . . 2 2 . 3 Combat Hostiles 18 | . . . . . . . . 3 . . . . . . 2 . . . 1 . 3 1 . . . . . . 2 . . . 2 1 . 3 Parts Melted 95 | . . . . . . . . 4 3 3 . . . . 13 3 3 . 10 4 17 14 . . . . 1 . 3 . . 3 4 4 . 6 Heat Transferred 36315 | 37 1036 . . . . 20 100 1405 1258 1036 . . . . 4437 1439 1450 200 2759 875 2830 7582 . . 37 74 . . 296 373 407 2704 549 1072 148 4191 Parts Sabotaged 3 | . . . . . . . . . . . . . . . . . . . . . . . . . . . . . . 2 . . . . . 1 Parts Stolen 1 | . . . . . . . . . . . . . . . . . 1 . . . . . . . . . . . . . . . . . . . Parts Stripped . | . . . . . . . . . . . . . . . . . . . . . . . . . . . . . . . . . . . . . Power Chain Reactions 5 | . . . . . . 1 2 1 . . . . . . . . . . . . . . . . . . . . . 1 . . . . . . Alert | -11 -10 -10 -9 -9 -9 -8 -8 -8 -8 -8 -8 -8 -8 -6 -6 -6 -6 -6 -5 -5 -5 -5 -5 -5 -5 -5 -4 -4 -4 -4 -3 -3 -3 -3 -2 -1 ------- Run | Yrd Mat Min Mat Min Exi Min Mat Gar Mat Sto Gar Rec Scr Fac Gar Fac Low Zio Pro Fac Gar Ext Cet Arc Hub Gar Fac Upp Upp War Pro Res Qua Sec Res Acc Maximum Alert Level 5 | . . . 2 . . . 1 4 3 2 3 2 . . 5 3 . . . . 4 5 4 3 5 5 5 . . . . 2 2 4 3 5 Low Security (%) 29 | 100 100 100 60 100 . 100 78 1 . . . . . 100 16 . . . . 100 5 . . 32 33 . . . . . . 43 1 4 . 16 Level 1 21 | . . . 23 . . . 21 19 . 81 33 93 . . 15 . . . . . 12 . . 36 19 . . . . . . 52 94 10 . 19 Level 2 11 | . . . 16 . . . . 17 5 18 39 6 . . 13 15 . . . . 28 . . 25 5 . . . . . . 4 4 14 21 19 Level 3 16 | . . . . . . . . 22 94 . 26 . . . 22 84 . . . . 19 26 . 6 5 . . . . . . . . 21 78 5 Level 4 11 | . . . . . . . . 39 . . . . . . 25 . . . . . 34 51 100 . 24 16 . . . . . . . 49 . 3 Level 5 7 | . . . . . . . . . . . . . . . 7 . . . . . . . . . 11 83 75 . . . . . . . . 12 High Security 2 | . . . . . . . . . . . . . . . . . . . . . . 22 . . . . 24 . . . . . . . . 24 Max Security . | . . . . . . . . . . . . . . . . . . . . . . . . . . . . . . . . . . . . . Peak Influence 3933 | 5 67 115 510 196 . 141 268 1565 1033 447 836 406 . 2 1710 1040 . . . 188 1574 2582 1516 760 1669 3494 2172 . . . . 475 469 1569 1061 3933 Initial 1834 | . . . . 196 . . 39 124 762 432 276 376 . . . 897 . . . 188 95 826 1440 580 42 1147 1834 . . . . 11 262 209 881 461 Average 674 | . 21 29 203 32 . 72 164 846 806 304 539 368 . . 775 769 . . . 124 828 1371 1457 335 655 2389 1934 . . . . 207 316 977 815 1261 Influence Increases 30135 | 10 241 336 1403 110 . 293 830 1551 864 605 560 47 . 3 1750 819 . . 587 202 1539 2394 288 270 2121 2367 786 422 127 313 135 997 1010 2028 435 4692 Destroy 0b10 Robot/C 14640 | . 140 200 780 100 . 180 460 800 580 400 320 . . . 520 460 . . 380 100 380 1500 160 80 600 940 400 360 100 260 100 580 600 1140 80 1940 Destroy 0b10 Robot/NC 890 | 10 20 5 120 . . 10 100 . 45 35 . 10 . . 50 55 . . 5 20 10 70 10 40 40 15 15 . . 5 5 15 25 55 10 90 Destroy Leader 2392 | . 34 40 242 10 . 20 126 30 124 128 10 . . . 40 136 . . 10 14 10 164 . . 154 80 82 40 20 . 30 132 94 210 24 388 Allied During Kill 2823 | . . 13 22 . . 9 . 21 11 . . . . . . . . . 192 42 20 495 93 120 290 246 210 22 7 3 . . . . . 1007 Successful Hack 468 | . 21 . 43 . . . 30 21 31 8 . . . . 42 2 . . . 14 14 . . . 8 14 17 . . . . 48 48 83 . 24 Select Force Hacks 90 | . . . 60 . . . . . . . . 30 . . . . . . . . . . . . . . . . . . . . . . . . Disable Machine 1290 | . 15 45 30 . . 30 . 30 15 30 15 . . . 90 60 . . . . 90 15 15 30 300 60 30 . . . . . 135 165 . 90 Anti-Garrison Action 4200 | . . . . . . . . 500 . . 200 . . . 850 . . . . . 800 . . . 150 850 . . . . . 150 . . 300 400 Destroy Structure 2562 | . 11 33 46 . . 44 69 134 58 4 15 7 . 3 68 91 . . . 12 140 90 10 . 564 132 32 . . . . 42 108 210 21 618 Lose Combat Pursuer 780 | . . . 60 . . . 45 15 . . . . . . 90 15 . . . . 75 60 . . 15 30 . . . 45 . 30 . 165 . 135 Influence Decreases 26202 | 10 241 336 898 615 . 191 741 177 1405 1204 149 560 323 3 40 1495 574 460 288 365 101 1396 1410 1598 604 512 2108 1122 601 1119 310 547 1105 833 1232 1529 Entered New Map 13201 | . . . . 309 . . 63 67 803 592 149 460 323 . . 813 384 460 . 111 41 748 1132 870 80 492 1660 804 281 998 192 6 205 163 686 309 Time Decay 10572 | 10 241 316 700 296 . 180 658 . 562 452 . 100 . 3 . 562 190 . 268 254 . 428 238 728 434 . 278 318 310 101 118 471 650 620 506 580 Lost Part 721 | . . . 10 10 . 11 20 90 20 10 . . . . 40 110 . . . . 20 20 20 . 10 20 10 . 10 20 . 70 100 50 10 40 Lost Ally 1260 | . . 20 40 . . . . 20 20 . . . . . . 10 . . 20 . 40 200 20 . 80 . 160 . . . . . . . 30 600 Purge Threat 448 | . . . 148 . . . . . . 150 . . . . . . . . . . . . . . . . . . . . . . 150 . . . Squads Dispatched 148 | . 1 . 6 1 . . 1 . 5 3 . . . . . 11 . . . 2 . 16 . . 11 . 8 . . . . 9 11 16 3 44 Investigation 26 | . . . 2 1 . . . . 1 . . . . . . 5 . . . 1 . 3 . . 3 . . . . . . 4 . 1 . 5 Extermination 19 | . . . . . . . . . . . . . . . . 3 . . . 1 . . . . . . 1 . . . . . 6 4 . 4 Reinforcement 39 | . 1 . 4 . . . . . 3 1 . . . . . 2 . . . . . 2 . . 4 . . . . . . 5 5 5 2 5 Assault 48 | . . . . . . . . . 1 . . . . . . 1 . . . . . 11 . . 4 . 7 . . . . . . 2 . 22 Garrison 12 | . . . . . . . 1 . . 2 . . . . . . . . . . . . . . . . . . . . . . . 3 . 6 Intercept 4 | . . . . . . . . . . . . . . . . . . . . . . . . . . . . . . . . . . 1 1 2 Searches Triggered . | . . . . . . . . . . . . . . . . . . . . . . . . . . . . . . . . . . . . . Unchained Authorized 1 | . . . . . . . . . . . . . . . . . . . . . . . . . . . . . . . . . 1 . . . Construction Impeded 7 | . . . 1 . . . . . . . . . . . . . . . . . . 1 . . 1 . . . . . . . 2 . . 2 Haulers Reinforced 4 | . . . . . . . . . . . . . . . . 1 . . . . . . . . . . . . . . . 2 . 1 . . Active Scanning Responses . | . . . . . . . . . . . . . . . . . . . . . . . . . . . . . . . . . . . . . Cargo Convoy Interrupts . | . . . . . . . . . . . . . . . . . . . . . . . . . . . . . . . . . . . . . Stealth | -11 -10 -10 -9 -9 -9 -8 -8 -8 -8 -8 -8 -8 -8 -6 -6 -6 -6 -6 -5 -5 -5 -5 -5 -5 -5 -5 -4 -4 -4 -4 -3 -3 -3 -3 -2 -1 --------- Run | Yrd Mat Min Mat Min Exi Min Mat Gar Mat Sto Gar Rec Scr Fac Gar Fac Low Zio Pro Fac Gar Ext Cet Arc Hub Gar Fac Upp Upp War Pro Res Qua Sec Res Acc Distress Signals 44 | . 1 . 4 . . . 2 . . . . . . . . . . . . 2 . 3 2 . . . . . . 1 . 13 2 1 5 8 Communications Jammed 201 | . . . . . . . . . . . . . . . . . . . . . . . . . 21 . 133 . . . . . . 47 . . Distress Signals 192 | . . . . . . . . . . . . . . . . . . . . . . . . . 17 . 128 . . . . . . 47 . . Times Spotted 1070 | . 14 10 48 7 35 10 36 37 31 21 12 . . . 31 31 2 1 36 7 29 93 9 14 30 46 30 14 5 68 5 38 61 86 14 159 Peak Tracking Total 19 | . 3 3 6 2 9 4 7 6 5 3 5 . . . 5 7 1 1 5 3 4 13 5 2 5 6 8 5 2 19 2 5 9 6 6 13 Tactical Retreats 63 | . . . 4 . 11 . 2 1 . . . . . . 6 1 . . . . 4 3 . . 1 2 . . . 2 . 2 6 11 . 7 Traps | -11 -10 -10 -9 -9 -9 -8 -8 -8 -8 -8 -8 -8 -8 -6 -6 -6 -6 -6 -5 -5 -5 -5 -5 -5 -5 -5 -4 -4 -4 -4 -3 -3 -3 -3 -2 -1 ------- Run | Yrd Mat Min Mat Min Exi Min Mat Gar Mat Sto Gar Rec Scr Fac Gar Fac Low Zio Pro Fac Gar Ext Cet Arc Hub Gar Fac Upp Upp War Pro Res Qua Sec Res Acc Traps Triggered 42 | . . . . . . . . 7 . 1 2 . . . 8 2 . . . 3 6 . . . 2 4 1 . . . . 3 . 1 . 2 Indirectly 1 | . . . . . . . . . . . . . . . . . . . . . . . . . 1 . . . . . . . . . . . Trap Hack Attempts . | . . . . . . . . . . . . . . . . . . . . . . . . . . . . . . . . . . . . . Triggered . | . . . . . . . . . . . . . . . . . . . . . . . . . . . . . . . . . . . . . Disarmed . | . . . . . . . . . . . . . . . . . . . . . . . . . . . . . . . . . . . . . Reprogrammed . | . . . . . . . . . . . . . . . . . . . . . . . . . . . . . . . . . . . . . Reused . | . . . . . . . . . . . . . . . . . . . . . . . . . . . . . . . . . . . . . Traps Extracted 2 | . . . . . . . . . . . . . . . . . 2 . . . . . . . . . . . . . . . . . . . Installed 3 | . . . . . . . . . . . . . . . . 1 2 . . . . . . . . . . . . . . . . . . . Triggered . | . . . . . . . . . . . . . . . . . . . . . . . . . . . . . . . . . . . . . Most Traps Carried 6 | . . . . . . . . . . . . . . . 6 6 5 5 5 5 5 2 2 . . . . . . . . . . . . . Machines | -11 -10 -10 -9 -9 -9 -8 -8 -8 -8 -8 -8 -8 -8 -6 -6 -6 -6 -6 -5 -5 -5 -5 -5 -5 -5 -5 -4 -4 -4 -4 -3 -3 -3 -3 -2 -1 ---------- Run | Yrd Mat Min Mat Min Exi Min Mat Gar Mat Sto Gar Rec Scr Fac Gar Fac Low Zio Pro Fac Gar Ext Cet Arc Hub Gar Fac Upp Upp War Pro Res Qua Sec Res Acc Machines Disabled 133 | . 1 3 2 . 4 2 . 11 1 2 3 . . . 10 4 . . . . 14 3 1 2 21 15 2 . . 1 . 1 9 13 2 6 Max in Single Turn 13 | . 1 2 1 . 2 1 . 2 1 1 1 . . . 1 1 . . . . 2 1 1 1 13 1 1 . . 1 . 1 1 2 1 1 Garrison Access 8 | . . . . . . . . . . . . . . . . . . . . . . . . . 1 . . . . . . 2 . . 3 2 Garrison Relay 27 | . . . . . . . . 5 . . 2 . . . 4 . . . . . 6 . . . . 10 . . . . . . . . . . Phase Generator 2 | . . . . . . . . 1 . . . . . . . . . . . . 1 . . . . . . . . . . . . . . . Network Hub 2 | . . . . . . . . . . . . . . . . . . . . . . . . . 2 . . . . . . . . . . . Machines Repaired . | . . . . . . . . . . . . . . . . . . . . . . . . . . . . . . . . . . . . . Machines Dismantled . | . . . . . . . . . . . . . . . . . . . . . . . . . . . . . . . . . . . . . Machines Sabotaged . | . . . . . . . . . . . . . . . . . . . . . . . . . . . . . . . . . . . . . Overloaded Fab Kills . | . . . . . . . . . . . . . . . . . . . . . . . . . . . . . . . . . . . . . Hacking | -11 -10 -10 -9 -9 -9 -8 -8 -8 -8 -8 -8 -8 -8 -6 -6 -6 -6 -6 -5 -5 -5 -5 -5 -5 -5 -5 -4 -4 -4 -4 -3 -3 -3 -3 -2 -1 --------- Run | Yrd Mat Min Mat Min Exi Min Mat Gar Mat Sto Gar Rec Scr Fac Gar Fac Low Zio Pro Fac Gar Ext Cet Arc Hub Gar Fac Upp Upp War Pro Res Qua Sec Res Acc Machines Accessed 115 | . 7 . 13 1 2 . 8 3 5 6 . 1 . 4 4 7 2 . 1 4 1 5 . . 3 2 4 . 1 4 . 6 4 9 . 8 Terminals 64 | . 4 . 8 . . . 6 3 3 4 . . . 2 4 2 . . . . 1 5 . . 2 2 2 . . . . 2 3 7 . 4 Fabricators 10 | . . . . . . . . . . . . . . 1 . 3 . . . 3 . . . . . . 1 . . . . 2 . . . . Repair Stations 7 | . 1 . 2 . . . . . . 1 . . . . . . . . 1 . . . . . . . 1 . . . . 1 . . . . Recycling Units 4 | . 2 . 1 . . . . . . . . 1 . . . . . . . . . . . . . . . . . . . . . . . . Scanalyzers 10 | . . . 2 . . . 1 . 2 . . . . . . 2 . . . . . . . . . . . . . . . . 1 1 . 1 Garrison Access 10 | . . . . . . . 1 . . 1 . . . 1 . . . . . 1 . . . . 1 . . . . . . 1 . 1 . 3 Total Hacks 304 | . 15 . 41 1 5 . 27 5 12 10 . 3 . 8 10 19 6 . 2 11 3 15 . . 9 4 11 . 1 8 . 23 11 22 . 22 Successful 138 | . 7 . 28 1 5 . 15 3 4 8 . 2 . 3 3 7 6 . 2 5 1 . . . 3 1 2 . 1 8 . 9 3 7 . 4 Failed 163 | . 7 . 12 . . . 11 2 8 2 . 1 . 5 7 12 . . . 6 2 15 . . 6 3 9 . . . . 14 8 15 . 18 Catastrophic 45 | . 3 . 2 . . . 1 1 . 1 . . . . . 2 . . . 2 1 4 . . 1 1 2 . . . . 6 3 7 . 8 Database Lockouts 3 | . 1 . 1 . . . 1 . . . . . . . . . . . . . . . . . . . . . . . . . . . . . Manual 106 | . 5 . 20 . 1 . 17 . 4 1 . 2 . . 2 4 . 1 . 2 . 2 1 . 3 . 3 . . 1 . 7 9 11 . 10 Terminals 173 | . 8 . 23 . . . 22 5 7 7 . . . 4 10 5 . . . . 3 15 . . 6 4 6 . . . . 11 7 17 . 13 Fabricators 24 | . . . . . . . . . . . . . . 2 . 7 . . . 6 . . . . . . 2 . . . . 7 . . . . Repair Stations 19 | . 2 . 7 . . . . . . 2 . . . . . . . . 2 . . . . . . . 3 . . . . 3 . . . . Recycling Units 11 | . 5 . 3 . . . . . . . . 3 . . . . . . . . . . . . . . . . . . . . . . . . Scanalyzers 32 | . . . 8 . . . 3 . 5 . . . . . . 7 . . . . . . . . . . . . . . . . 4 2 . 3 Garrison Access 24 | . . . . . . . 2 . . 1 . . . 2 . . . . . 5 . . . . 3 . . . . . . 2 . 3 . 6 Terminal Hacks 59 | . 3 . 5 1 5 . 5 3 1 4 . . . 1 2 . 6 . . . 1 . . . . 1 1 . 1 8 . 2 1 7 . 1 Record 16 | . . . . . 4 . . . . . . . . . . . 5 . . . . . . . . . . . . 7 . . . . . . Part Schematic 1 | . 1 . . . . . . . . . . . . . . . . . . . . . . . . . . . . . . . . . . . Robot Schematic 1 | . 1 . . . . . . . . . . . . . . . . . . . . . . . . . . . . . . . . . . . Robot Analysis 4 | . . . 1 . . . 2 . . . . . . . . . . . . . . . . . . . . . . . . 1 . . . . Prototype ID Bank 2 | . . . 1 . . . 1 . . . . . . . . . . . . . . . . . . . . . . . . . . . . . Open Door 10 | . . . . 1 . . . 1 . 2 . . . . . . 1 . . . . . . . . . . . 1 1 . . . 3 . . Open DSF 1 | . . . . . . . . . . . . . . . . . . . . . . . . . . . 1 . . . . . . . . . Level Access Points 1 | . . . . . . . . . . . . . . . . . . . . . . . . . . . . . . . . . . 1 . . Branch Access Points 1 | . . . 1 . . . . . . . . . . . . . . . . . . . . . . . . . . . . . . . . . Emergency Access Points 4 | . . . 1 . . . . . . . . . . . . . . . . . 1 . . . . 1 . . . . . . . . . 1 Unreport Threat 3 | . . . 1 . . . . . . 1 . . . . . . . . . . . . . . . . . . . . . . 1 . . . Locate Traps 4 | . 1 . . . . . 2 . . 1 . . . . . . . . . . . . . . . . . . . . . . . . . . Registered Components 1 | . . . . . . . . . . . . . . . . . . . . . . . . . . . . . . . . . . 1 . . Zone Layout 5 | . . . . . . . . . 1 . . . . 1 . . . . . . . . . . . . . . . . . 1 . 2 . . Garrison Registry 1 | . . . . . . . . 1 . . . . . . . . . . . . . . . . . . . . . . . . . . . . Patrol Navigation 2 | . . . . . . . . 1 . . . . . . 1 . . . . . . . . . . . . . . . . . . . . . Security Stations 1 | . . . . . . . . . . . . . . . 1 . . . . . . . . . . . . . . . . . . . . . Proto ID Catalog 1 | . . . . . 1 . . . . . . . . . . . . . . . . . . . . . . . . . . . . . . . Fabricator Hacks 8 | . . . . . . . . . . . . . . 1 . 2 . . . 3 . . . . . . . . . . . 2 . . . . Network Status 1 | . . . . . . . . . . . . . . . . . . . . 1 . . . . . . . . . . . . . . . . Load Schematic 3 | . . . . . . . . . . . . . . . . 1 . . . 1 . . . . . . . . . . . 1 . . . . Build 4 | . . . . . . . . . . . . . . 1 . 1 . . . 1 . . . . . . . . . . . 1 . . . . Repair Station Hacks 16 | . 2 . 7 . . . . . . 2 . . . . . . . . 2 . . . . . . . 1 . . . . 2 . . . . Scan Component 9 | . 1 . 4 . . . . . . 1 . . . . . . . . 1 . . . . . . . 1 . . . . 1 . . . . Repair 7 | . 1 . 3 . . . . . . 1 . . . . . . . . 1 . . . . . . . . . . . . 1 . . . . Recycling Unit Hacks 4 | . 2 . 1 . . . . . . . . 1 . . . . . . . . . . . . . . . . . . . . . . . . Report Inventory 4 | . 2 . 1 . . . . . . . . 1 . . . . . . . . . . . . . . . . . . . . . . . . Scanalyzer 16 | . . . 6 . . . 2 . 3 . . . . . . 4 . . . . . . . . . . . . . . . . . . . 1 Insert Component 6 | . . . 2 . . . 1 . 1 . . . . . . 1 . . . . . . . . . . . . . . . . . . . 1 Analyze 5 | . . . 2 . . . 1 . 1 . . . . . . 1 . . . . . . . . . . . . . . . . . . . . Retrieve Study 5 | . . . 2 . . . . . 1 . . . . . . 2 . . . . . . . . . . . . . . . . . . . . Garrison Access Hacks 5 | . . . . . . . 1 . . 1 . . . 1 . . . . . 1 . . . . 1 . . . . . . . . . . . Unlock Access 5 | . . . . . . . 1 . . 1 . . . 1 . . . . . 1 . . . . 1 . . . . . . . . . . . Unauthorized Hacks 30 | . . . 9 . . . 7 . . 1 . 1 . . 1 1 . . . 1 . . . . 2 . . . . . . 3 2 . . 2 Terminals 17 | . . . 7 . . . 7 . . 1 . . . . 1 . . . . . . . . . . . . . . . . . 1 . . . Track 1 | . . . . . . . . . . . . . . . . . . . . . . . . . . . . . . . . . 1 . . . Botnet 6 | . . . 2 . . . 2 . . 1 . . . . 1 . . . . . . . . . . . . . . . . . . . . . Operators 1 | . . . 1 . . . . . . . . . . . . . . . . . . . . . . . . . . . . . . . . . Skim 9 | . . . 4 . . . 5 . . . . . . . . . . . . . . . . . . . . . . . . . . . . . Fabricators 4 | . . . . . . . . . . . . . . . . 1 . . . 1 . . . . . . . . . . . 2 . . . . Prioritize 1 | . . . . . . . . . . . . . . . . . . . . . . . . . . . . . . . . 1 . . . . Liberate 1 | . . . . . . . . . . . . . . . . . . . . 1 . . . . . . . . . . . . . . . . Recompile 2 | . . . . . . . . . . . . . . . . 1 . . . . . . . . . . . . . . . 1 . . . . Repair Stations 1 | . . . . . . . . . . . . . . . . . . . . . . . . . . . . . . . . 1 . . . . Patch 1 | . . . . . . . . . . . . . . . . . . . . . . . . . . . . . . . . 1 . . . . Recycling Units 2 | . . . 1 . . . . . . . . 1 . . . . . . . . . . . . . . . . . . . . . . . . Tunnel 2 | . . . 1 . . . . . . . . 1 . . . . . . . . . . . . . . . . . . . . . . . . Scanalyzers 2 | . . . 1 . . . . . . . . . . . . . . . . . . . . . . . . . . . . . 1 . . . Researchers 1 | . . . . . . . . . . . . . . . . . . . . . . . . . . . . . . . . . 1 . . . Extract 1 | . . . 1 . . . . . . . . . . . . . . . . . . . . . . . . . . . . . . . . . Garrison Access 4 | . . . . . . . . . . . . . . . . . . . . . . . . . 2 . . . . . . . . . . 2 Broadcast 1 | . . . . . . . . . . . . . . . . . . . . . . . . . 1 . . . . . . . . . . . Reprogram 1 | . . . . . . . . . . . . . . . . . . . . . . . . . 1 . . . . . . . . . . . Jam 2 | . . . . . . . . . . . . . . . . . . . . . . . . . . . . . . . . . . . . 2 Data Cores Recovered 1 | . . . . . . . . . . . . . . . . . . . . . . . . . 1 . . . . . . . . . . . Used 1 | . . . . . . . . . . . . . . . . . . . . . . . . . 1 . . . . . . . . . . . Hacking Detections 92 | . 6 . 12 . . . 8 3 5 5 . . . 3 4 6 . . 1 4 1 5 . . 3 2 4 . . . . 4 3 7 . 6 Full Trace Events 15 | . 1 . . . . . . . 1 . . . . . 1 3 . . . 1 1 3 . . 1 . . . . . . . . 1 . 2 Feedback Events 1 | . . . . . . . . . . . . . . . . . . . . 1 . . . . . . . . . . . . . . . . Corruption 1 | . . . . . . . . . . . . . . . . . . . . 1 . . . . . . . . . . . . . . . . Feedback Blocked . | . . . . . . . . . . . . . . . . . . . . . . . . . . . . . . . . . . . . . Robot Schematics Acquired 3 | . 1 . . . . . . . . . . . . . . . . . . . . . . . . . . . . . . . 2 . . . Robots Built 1 | . . . . . . . . . . . . . . . . 1 . . . . . . . . . . . . . . . . . . . . Authchips . | . . . . . . . . . . . . . . . . . . . . . . . . . . . . . . . . . . . . . Time 81 | . . . . . . . . . . . . . . . . 81 . . . . . . . . . . . . . . . . . . . . Total Robot Build Rating 1 | . . . . . . . . . . . . . . . . 1 . . . . . . . . . . . . . . . . . . . . Part Schematics Acquired 26 | . 1 . 4 . . . 1 . 1 . . . . . . 1 . . . . . . . . . . . . . . . . 15 3 . . Parts Built 4 | . . . . . . . . . . . . . . 2 . . . . . 1 . . . . . . . . . . . 1 . . . . Authchips 2 | . . . . . . . . . . . . . . . . . . . . 1 . . . . . . . . . . . 1 . . . . Time 270 | . . . . . . . . . . . . . . 95 . . . . . 58 . . . . . . . . . . . 117 . . . . Total Part Build Rating 24 | . . . . . . . . . . . . . . 10 . . . . . 7 . . . . . . . . . . . 7 . . . . Part Studies Acquired 5 | . . . 2 . . . . . 1 . . . . . . 2 . . . . . . . . . . . . . . . . . . . . Parts Repaired 7 | . 1 . 3 . . . . . . 1 . . . . . . . . 1 . . . . . . . . . . . . 1 . . . . Time 318 | . 26 . 115 . . . . . . 50 . . . . . . . . 19 . . . . . . . . . . . . 108 . . . . Parts Recycled . | . . . . . . . . . . . . . . . . . . . . . . . . . . . . . . . . . . . . . Recycled Matter . | . . . . . . . . . . . . . . . . . . . . . . . . . . . . . . . . . . . . . Retrieved Matter . | . . . . . . . . . . . . . . . . . . . . . . . . . . . . . . . . . . . . . Retrieved Components . | . . . . . . . . . . . . . . . . . . . . . . . . . . . . . . . . . . . . . Parts Scanalyzed 5 | . . . 2 . . . 1 . 1 . . . . . . 1 . . . . . . . . . . . . . . . . . . . . Part Schematics Acquired 5 | . . . 2 . . . 1 . 1 . . . . . . 1 . . . . . . . . . . . . . . . . . . . . Parts Damaged . | . . . . . . . . . . . . . . . . . . . . . . . . . . . . . . . . . . . . . Bothacking | -11 -10 -10 -9 -9 -9 -8 -8 -8 -8 -8 -8 -8 -8 -6 -6 -6 -6 -6 -5 -5 -5 -5 -5 -5 -5 -5 -4 -4 -4 -4 -3 -3 -3 -3 -2 -1 ------------ Run | Yrd Mat Min Mat Min Exi Min Mat Gar Mat Sto Gar Rec Scr Fac Gar Fac Low Zio Pro Fac Gar Ext Cet Arc Hub Gar Fac Upp Upp War Pro Res Qua Sec Res Acc Used RIF Installer . | . . . . . . . . . . . . . . . . . . . . . . . . . . . . . . . . . . . . . Robots Hacked 6 | . . . . . 4 . . . . . . . . . . . . . . . . . . . . 1 . . . 1 . . . . . . Non-combat 3 | . . . . . 3 . . . . . . . . . . . . . . . . . . . . . . . . . . . . . . . Combat 3 | . . . . . 1 . . . . . . . . . . . . . . . . . . . . 1 . . . 1 . . . . . . Robot Hacks Applied 6 | . . . . . 4 . . . . . . . . . . . . . . . . . . . . 1 . . . 1 . . . . . . parse_system 6 | . . . . . 4 . . . . . . . . . . . . . . . . . . . . 1 . . . 1 . . . . . . Relay Couplers Released 127 | . . . . . . . . 21 . . 13 . . . 17 . . . . . 28 . . . 2 41 . . . . . 2 . . 3 . Machine Destruction 121 | . . . . . . . . 21 . . 10 . . . 17 . . . . . 25 . . . 2 41 . . . . . 2 . . 3 . Programmers 6 | . . . . . . . . . . . 3 . . . . . . . . . 3 . . . . . . . . . . . . . . . Fabnet Peak Effective % . | . . . . . . . . . . . . . . . . . . . . . . . . . . . . . . . . . . . . . Robots Rewired 24 | . . . . . . . . 2 . . . . . . . . . . . . 3 9 . . . 10 . . . . . . . . . . Allies Hacked 2 | . . . . . . . . . . . . . . . . . . . . . . 1 . . . . . . 1 . . . . . . . Hacks Repelled 1 | . . . . . . . . . . . . . . . . . . . . . . . . . . . . . . . . . . . . 1 Allies | -11 -10 -10 -9 -9 -9 -8 -8 -8 -8 -8 -8 -8 -8 -6 -6 -6 -6 -6 -5 -5 -5 -5 -5 -5 -5 -5 -4 -4 -4 -4 -3 -3 -3 -3 -2 -1 -------- Run | Yrd Mat Min Mat Min Exi Min Mat Gar Mat Sto Gar Rec Scr Fac Gar Fac Low Zio Pro Fac Gar Ext Cet Arc Hub Gar Fac Upp Upp War Pro Res Qua Sec Res Acc Total Allies 44 | . . 3 . . . . . 2 . . . . . . . 1 . 2 1 2 5 10 5 . 2 11 . . . . . . . . . . Largest Group 11 | . . 2 2 . . . . 2 1 . . . . . . 1 . 2 2 3 5 11 6 4 5 10 10 1 1 1 . . . . . . Highest-Rated Group 617 | . . 32 32 . . . . 62 31 . . . . . . 12 . 192 192 178 322 491 617 384 384 345 345 29 29 29 . . . . . . Highest-Rated Ally 159 | . . 31 16 . . . . 31 31 . . . . . . 12 . 96 96 96 95 159 137 96 96 119 87 29 29 29 . . . . . . Initial Warlord ECA Mod 41 | . . . . . . . . . 10 10 10 14 14 12 12 18 18 18 17 17 17 28 28 28 28 28 41 40 40 40 39 39 39 39 38 37 Warlord Squad Rendezvous 1 | . . . . . . . . . . . . . . . . . . . . . . . . . . . 1 . . . . . . . . . Ghost 1 | . . . . . . . . . . . . . . . . . . . . . . . . . . . 1 . . . . . . . . . Total Orders 27 | . . . . . . . . . . . . . . . . 1 . . . . . . . . 3 11 . . . 1 . . . . 10 1 STAY 10 | . . . . . . . . . . . . . . . . . . . . . . . . . 3 6 . . . 1 . . . . . . FOLLOW 5 | . . . . . . . . . . . . . . . . . . . . . . . . . . 5 . . . . . . . . . . AID 1 | . . . . . . . . . . . . . . . . . . . . . . . . . . . . . . . . . . . . 1 PICKUP 1 | . . . . . . . . . . . . . . . . 1 . . . . . . . . . . . . . . . . . . . . EXPLORE 5 | . . . . . . . . . . . . . . . . . . . . . . . . . . . . . . . . . . . 5 . RETURN 5 | . . . . . . . . . . . . . . . . . . . . . . . . . . . . . . . . . . . 5 . Ally Attacks 1108 | . . 9 23 . . 7 . 24 11 . . . . . . . . 5 35 11 63 128 11 10 57 53 45 8 3 1 . . . . . 604 Total Damage 30603 | . . 99 245 . . 312 . 435 212 . . . . . . . . 220 1168 320 661 4347 357 439 2040 1677 683 58 39 . . . . . . 17291 Kills 171 | . . 3 5 . . 4 . 5 1 . . . . . . . . 1 7 3 10 30 4 1 9 14 1 2 . . . . . . . 71 Allies Corrupted 6 | . . . . . . . . . . . . . . . . . . . . . . 1 . . 2 . 1 . . . . . . . . 2 Allies Melted 1 | . . . . . . . . 1 . . . . . . . . . . . . . . . . . . . . . . . . . . . . Turrets Deployed 1 | . . . . . . 1 . . . . . . . . . . . . . . . . . . . . . . . . . . . . . . Borg Created 32 | . . . . . . . . . . . . . . . . . . . . . . . . . . . . . . . . . . . . 32 Largest Collective 5 | . . . . . . . . . . . . . . . . . . . . . . . . . . . . . . . . . . . . 5 Intel | -11 -10 -10 -9 -9 -9 -8 -8 -8 -8 -8 -8 -8 -8 -6 -6 -6 -6 -6 -5 -5 -5 -5 -5 -5 -5 -5 -4 -4 -4 -4 -3 -3 -3 -3 -2 -1 ------- Run | Yrd Mat Min Mat Min Exi Min Mat Gar Mat Sto Gar Rec Scr Fac Gar Fac Low Zio Pro Fac Gar Ext Cet Arc Hub Gar Fac Upp Upp War Pro Res Qua Sec Res Acc Active Infowar (turns) 30584 | 50 272 . . . . . . . . . . . . 475 2622 1672 394 1875 1053 558 1226 1340 505 3550 1067 2282 796 715 686 645 . 601 2380 2093 1370 2357 Optics 11758 | . . . . . . . . . . . . . . 475 2622 452 . . . . . . . . . . . . . . . 9 2380 2093 1370 2357 A.S.S. 1 | . . . . . . . . . . . . . . . . . . . . . . . . . . . 1 . . . . . . . . . Terrain 322 | 50 272 . . . . . . . . . . . . . . . . . . . . . . . . . . . . . . . . . . . Traps 166 | . . . . . . . . . . . . . . . . . . . . . . . . . . . . . . . . . 166 . . . T.N.C. 18720 | . . . . . . . . . . . . . . . 356 1672 394 1875 1053 558 1226 1340 505 3550 1067 2282 796 715 686 645 . . . . . . Jamming 4572 | . . . . . . . . . . . . . . . . . . . . . . . . 86 1019 479 602 . . . . 592 686 1108 . . Robot Analysis Total 4 | . . . 1 . . . 2 . . . . . . . . . . . . . . . . . . . . . . . . 1 . . . . Derelict Logs Recovered 8 | . . 2 . 1 . . . . . . . . . . . . . 1 1 . . . . . . . . 2 1 . . . . . . . Drone Launches 6 | . . . . . . . . . . . . . . . . . . . . . . . . . . . . . . . . . . . 6 . Drone Recoveries 3 | . . . . . . . . . . . . . . . . . . . . . . . . . . . . . . . . . . . 3 . Exploration | -11 -10 -10 -9 -9 -9 -8 -8 -8 -8 -8 -8 -8 -8 -6 -6 -6 -6 -6 -5 -5 -5 -5 -5 -5 -5 -5 -4 -4 -4 -4 -3 -3 -3 -3 -2 -1 ------------- Run | Yrd Mat Min Mat Min Exi Min Mat Gar Mat Sto Gar Rec Scr Fac Gar Fac Low Zio Pro Fac Gar Ext Cet Arc Hub Gar Fac Upp Upp War Pro Res Qua Sec Res Acc Turns Passed 53198 | 151 788 1216 3511 1656 2620 377 2473 1974 1676 1123 1200 215 1739 585 2637 1672 394 1875 1053 558 1226 1356 505 3550 1067 2282 796 715 686 1612 418 1292 2380 2093 1370 2357 Spaces Moved 22040 | 86 374 668 1377 678 1116 127 882 690 593 357 316 93 755 210 920 879 191 1084 561 303 547 638 253 407 449 1111 370 442 412 792 215 507 1015 857 805 960 Core 138 | 7 . . . . . . . . . . . . . . . . . . . . . . . 131 . . . . . . . . . . . . Treads 21902 | 79 374 668 1377 678 1116 127 882 690 593 357 316 93 755 210 920 879 191 1084 561 303 547 638 253 276 449 1111 370 442 412 792 215 507 1015 857 805 960 Legs . | . . . . . . . . . . . . . . . . . . . . . . . . . . . . . . . . . . . . . Wheels . | . . . . . . . . . . . . . . . . . . . . . . . . . . . . . . . . . . . . . Hover . | . . . . . . . . . . . . . . . . . . . . . . . . . . . . . . . . . . . . . Flight . | . . . . . . . . . . . . . . . . . . . . . . . . . . . . . . . . . . . . . Fastest Speed 50 | 50 160 160 160 240 160 240 240 240 240 230 230 230 226 157 157 160 160 163 163 160 155 155 155 160 160 155 155 155 155 155 155 150 152 160 160 160 Average Speed 196 | 151 160 160 213 240 197 240 245 244 240 236 230 230 228 227 223 166 161 163 163 161 156 155 164 784 160 155 155 155 155 155 155 156 172 160 160 160 Slowest Speed 2100 | 160 160 160 240 240 240 240 247 250 240 240 230 230 230 229 320 240 163 163 163 162 162 155 240 2100 160 160 155 155 155 155 155 237 465 160 240 160 Overloaded Moves . | . . . . . . . . . . . . . . . . . . . . . . . . . . . . . . . . . . . . . Propulsion Burnouts . | . . . . . . . . . . . . . . . . . . . . . . . . . . . . . . . . . . . . . Robots Hopped . | . . . . . . . . . . . . . . . . . . . . . . . . . . . . . . . . . . . . . Potential Cave-ins 12 | . . . . . . . . . . . . . . . . . . . . . . . . . . . . . . 2 . . . . . 10 Cave-ins Triggered 2 | . . . . . . . . . . . . . . . . . . . . . . . . . . . . . . . . . . . . 2 Teleports 4 | . . . . . . . . . . . . . . . . . . . . . . . . . . . . . . . . . 3 . . 1 Exploration Rate (%) 57 | 4 67 97 96 98 88 36 50 86 43 63 39 16 52 7 88 32 21 84 55 12 69 83 66 96 39 95 8 68 60 85 42 19 87 64 75 29 Regions Visited 36 Branch Regions 20 Pre-discovered Areas 11 | . . 2 1 . 1 . 2 . . . . 1 . . . . 1 2 . . . . . . . . . 1 . . . . . . . . Known Exits Taken 12 | . . . 1 . . . 1 . 1 1 . . 1 1 . 1 . . 1 1 . . . . 1 . . . . . 1 . . 1 . . Unknown Exits Taken 19 | 1 1 1 . 1 1 1 . . . . . 1 . . . . 1 1 . . . 1 1 1 . . 1 1 1 1 . 1 1 . 1 . Scrap Searched 17 | . . 1 . 2 . . . . . . . . 3 . . . . 4 2 . . . . . . . . 2 1 . 2 . . . . . Spaces Dug 73 | . . . . . 1 . . . . . . . . 3 2 5 1 . . 5 . . . . 5 . . . . 2 . 9 6 7 4 23 Terrain Destroyed 1939 | . 14 40 38 . 29 66 90 182 84 1 . 7 . 3 71 97 1 . . 10 103 68 4 . 374 27 22 16 10 29 17 38 62 98 9 329 Melee 20 | . . . . . 1 . . . . . . . . 3 2 5 1 . . 1 . . . . . . . . . . . 6 1 . . . Projectile 387 | . . . . . . 1 . 1 . 1 . 7 . . 3 33 . . . 9 18 13 4 . 33 27 22 16 10 13 17 31 36 28 9 55 AOE 1530 | . 14 40 38 . 28 65 90 181 84 . . . . . 65 59 . . . . 85 55 . . 341 . . . . 16 . . 25 70 . 274 Terrain Rammed . | . . . . . . . . . . . . . . . . . . . . . . . . . . . . . . . . . . . . . Walls Destroyed . | . . . . . . . . . . . . . . . . . . . . . . . . . . . . . . . . . . . . . Machines Disabled . | . . . . . . . . . . . . . . . . . . . . . . . . . . . . . . . . . . . . . Actions | -11 -10 -10 -9 -9 -9 -8 -8 -8 -8 -8 -8 -8 -8 -6 -6 -6 -6 -6 -5 -5 -5 -5 -5 -5 -5 -5 -4 -4 -4 -4 -3 -3 -3 -3 -2 -1 --------- Run | Yrd Mat Min Mat Min Exi Min Mat Gar Mat Sto Gar Rec Scr Fac Gar Fac Low Zio Pro Fac Gar Ext Cet Arc Hub Gar Fac Upp Upp War Pro Res Qua Sec Res Acc Total 29051 | 99 483 793 1731 695 1357 176 1074 856 739 533 794 95 768 309 1270 1009 237 1194 636 345 794 859 346 742 717 1509 545 457 438 1142 269 830 1511 1293 864 1542 Wait 3159 | . 33 98 171 2 39 29 81 22 39 86 422 . . 77 95 52 3 79 45 1 90 25 10 298 175 107 123 6 9 254 30 173 156 120 16 193 Move 22006 | 85 373 667 1376 677 1115 126 881 689 592 357 315 92 754 210 919 878 190 1083 560 303 546 637 252 406 448 1110 369 441 411 791 214 506 1014 856 804 959 Hop . | . . . . . . . . . . . . . . . . . . . . . . . . . . . . . . . . . . . . . Pick Up 309 | 3 19 2 25 2 28 1 11 10 9 5 5 . 3 2 12 6 7 12 4 6 13 8 8 1 7 12 1 . . 13 2 11 30 16 2 13 Fast Attach 211 | 7 1 . 6 1 . . 3 7 3 4 . . 1 4 16 7 3 . . 2 5 2 14 5 7 22 4 . . 13 2 9 31 14 8 10 Attach 168 | . . . 3 . 7 3 2 8 1 1 1 . 4 2 3 8 4 5 . 8 18 6 2 2 2 9 4 . 1 3 2 9 24 13 1 12 Detach 59 | . . . 1 . . 1 . 2 1 . . . . 1 2 2 . . . 1 10 4 3 1 1 . 1 . . 1 . 1 13 7 . 6 Swap 306 | 2 4 7 21 3 14 1 18 4 14 10 6 . 1 3 20 1 7 2 1 1 4 2 7 . 17 24 6 . 3 6 3 15 30 21 4 24 Drop 409 | . 8 2 26 4 25 2 10 7 18 13 9 . 5 3 31 10 2 11 4 5 21 5 23 4 9 22 5 . . 20 3 7 56 16 8 15 Fire 1872 | 2 42 11 98 6 108 13 47 50 57 55 34 3 . 3 111 11 11 2 22 17 67 96 27 14 50 115 30 10 14 41 12 92 141 208 21 231 Melee 205 | . . . . . 21 . 6 25 3 . . . . 4 49 33 8 . . 1 . . . 11 . . . . . . . 6 12 4 . 22 Ram 1 | . . . 1 . . . . . . . . . . . . . . . . . . . . . . . . . . . . . . . . . Kick . | . . . . . . . . . . . . . . . . . . . . . . . . . . . . . . . . . . . . . Crush 67 | . 3 6 3 . . . 15 . 2 2 . . . . . . . . . . . 5 . . 1 . 2 . . . 1 1 4 18 . 4 Escape Stasis 25 | . . . . . . . . 12 . . 2 . . . 11 . . . . . . . . . . . . . . . . . . . . . Rewire 204 | . . . . . . . . 20 . . . . . . 1 . . . . . 20 69 . . . 88 . . . . . . . . . 6 Trap 3 | . . . . . . . . . . . . . . . . 1 2 . . . . . . . . . . . . . . . . . . . Miscellaneous 47 | . . . . . . . . . . . . . . . . . . . . . . . . . . . . . . . . . . . . 47 Route ------- -11/Scrapyard -10/Materials (discovered 2 exits: *Mat / [*Min]) -10/Mines (discovered 2 exits: *Mat x2) -9/Materials (discovered 4 exits: *Mat x3 / *Min) -9/Mines (discovered 3 exits: *Mat x2 / *Exi) -9/Exiles (discovered 2 exits: [*Min x2]) -8/Mines -8/Materials (discovered 6 exits: *Fac x3 / *Sto x2 / Gar) -8/Garrison (discovered 3 exits: *Mat x3) -8/Materials (discovered 4 exits: *Fac x3 / *Sto) -8/Storage (discovered 2 exits: Fac / Gar) -8/Garrison -8/Recycling (discovered 2 exits: Fac / [*Scr]) -8/Scraptown -6/Factory (discovered 5 exits: Fac x3 / Low / Gar) -6/Garrison (discovered 3 exits: *Fac x3) -6/Factory -6/Lower Caves (discovered 2 exits: Low / *Zio) -6/Zion -5/Proximity Caves -5/Factory (discovered 3 exits: Fac x2 / Gar) -5/Garrison (discovered 2 exits: *Ext x2) -5/Extension (discovered 2 exits: *Fac / *Cet) -5/Cetus (discovered 2 exits: *Fac / [*Arc]) -5/Archives (discovered 3 exits: *Fac / *Hub x2) -5/Hub_04(d) (discovered 2 exits: *Fac / Gar) -5/Garrison (discovered 3 exits: *Fac x3) -4/Factory (discovered 2 exits: *Res / [*Upp]) -4/Upper Caves -4/Upper Caves -4/Warlord -3/Proximity Caves -3/Research (discovered 2 exits: Res / *Qua) -3/Quarantine (discovered 3 exits: *Res / *Sec / [*Frg]) -3/Section 7 -2/Research (discovered 4 exits: *Acc x3 / [*Tes]) -1/Access To Epsilon Eridani History --------- Turn | Location | Event 10 | -11/Scrapyard | Discovered new exit (range 16) 152 | -11/Scrapyard | Entered Materials 249 | -10/Materials | Central database locked down 317 | -10/Materials | Build established: Mutant 356 | -10/Materials | Discovered new exit (range 7) 775 | -10/Materials | Discovered new exit (range 5) 866 | -10/Materials | Repaired Lgt. Treads 940 | -10/Materials | Entered Mines 1006 | -10/Mines | Learned Materials trap positions 1020 | -10/Mines | Escorted by a lone wolf Derelict 1040 | -10/Mines | Learned location of Storage (-8) 1139 | -10/Mines | Learned Materials machine intel 1254 | -10/Mines | Assembled infested the area 1432 | -10/Mines | Assisted by bots powering up and referring to "LRC-V3" 1609 | -10/Mines | Discovered new exit (range 5) 1795 | -10/Mines | Discovered new exit (range 6) 2113 | -10/Mines | A weapon hastily lodged in a ceiling crevice suddenly fell to the ground 2156 | -10/Mines | Entered Materials 2156 | -9/Materials | Accompanied by 2 allies 2156 | -9/Materials | Evolved 2 slots: Propulsion x1, Weapon x1 2157 | -9/Materials | Loaded intel: 15 trap records 2158 | -9/Materials | Loaded intel: 57 machine locations 2530 | -9/Materials | Build established: Gunner 2813 | -9/Materials | Discovered new exit (range 10) 2898 | -9/Materials | Discovered new exit (range 10) 2908 | -9/Materials | Central database locked down 3071 | -9/Materials | Discovered new exit (range 14) 3580 | -9/Materials | Repaired Imp. Assault Rifle 4113 | -9/Materials | Identified exit to Mines 4149 | -9/Materials | Discovered new exit (range 4) 4986 | -9/Materials | Repaired Imp. Treads 5025 | -9/Materials | Repaired Imp. Treads 5667 | -9/Materials | Entered Mines 5971 | -9/Mines | Deemed a non-threat by the Exiles lab entrance 5973 | -9/Mines | Discovered new exit (range 5) 6167 | -9/Mines | Discovered new exit (range 6) 6185 | -9/Mines | Met a Derelict shopkeep closing up shop 6466 | -9/Mines | Discovered new exit (range 6) 7323 | -9/Mines | Entered Exiles 7355 | -9/Exiles | Discovered new exit (range 15) 7383 | -9/Exiles | Met 8R-AWN 7425 | -9/Exiles | Met EX-HEX 7522 | -9/Exiles | Met EX-DEC 7586 | -9/Exiles | Learned location of Zion (-6) 7632 | -9/Exiles | Met EX-BIN 7667 | -9/Exiles | Aligned with FarCom system 7669 | -9/Exiles | Given EX-Vault access code 7675 | -9/Exiles | Build established: Mutant 7727 | -9/Exiles | Opened EX-Vault 7752 | -9/Exiles | Found XL Autogun Array 7763 | -9/Exiles | Found Modified TNC 7824 | -9/Exiles | Warned to stay clear of 0b10 Research branches 8035 | -9/Exiles | Build established: Gunner 8444 | -9/Exiles | Attacked by the Exiles 8577 | -9/Exiles | Core integrity fell below 50% 8655 | -9/Exiles | Lost 5 parts (2n3w) 8659 | -9/Exiles | Core integrity fell below 20% 8691 | -9/Exiles | Destroyed 8R-AWN 8914 | -9/Exiles | Destroyed EX-BIN 8976 | -9/Exiles | Destroyed EX-DEC 9004 | -9/Exiles | Destroyed EX-HEX 9018 | -9/Exiles | Found Exp. Core Analyzer 9022 | -9/Exiles | Found Deploy-a-Sentry 9094 | -9/Exiles | Found System Purifier 9289 | -9/Exiles | Build established: Mutant 9582 | -9/Exiles | Found YOLO Cannon 9924 | -9/Exiles | Discovered new exit (range 10) 9943 | -9/Exiles | Stole four prototypes: Modified TNC, YOLO Cannon, XL Autogun Array, Deploy-a-Sentry 9943 | -9/Exiles | Entered Mines 9959 | -8/Mines | DAS Turret deployed 9995 | -8/Mines | CL-ANK came to Exiles' defense 10000 | -8/Mines | Destroyed CL-ANK 10282 | -8/Mines | Discovered new exit (range 7) 10320 | -8/Mines | Entered Materials 10320 | -8/Materials | Evolved 2 slots: Propulsion x1, Weapon x1 10418 | -8/Materials | Destroyed 7 combat bots 10777 | -8/Materials | Garrison activated, responded to threat 10871 | -8/Materials | Identified exit to Garrison 10902 | -8/Materials | Build established: Gunner 10905 | -8/Materials | Discovered new exit (range 5) 10907 | -8/Materials | Discovered new exit (range 13) 11422 | -8/Materials | Central database locked down 12109 | -8/Materials | Learned location of 2 exits from Factory 12182 | -8/Materials | Learned location of 2 exits from Factory 12246 | -8/Materials | Identified exit to Factory 12246 | -8/Materials | Identified exit to Storage 12298 | -8/Materials | Learned 12 Factory zone layouts 12391 | -8/Materials | Learned location of Extension (-5) 12465 | -8/Materials | Learned location of 1 exit from Lower Caves 12519 | -8/Materials | Learned 4 Lower Caves zone layouts 12793 | -8/Materials | Entered Garrison 12826 | -8/Garrison | Phase Generator disabled 12958 | -8/Garrison | Discovered new exit (range 37) 12958 | -8/Garrison | Discovered new exit (range 59) 12958 | -8/Garrison | Discovered new exit (range 46) 13060 | -8/Garrison | Triggered checkpoint 13092 | -8/Garrison | Garrison Relay disabled 13203 | -8/Garrison | Triggered checkpoint 13208 | -8/Garrison | Triggered checkpoint 13265 | -8/Garrison | Spotted B-75 Beast 13273 | -8/Garrison | Spotted B-75 Beast 13283 | -8/Garrison | Destroyed B-75 Beast 13302 | -8/Garrison | Destroyed B-75 Beast 13599 | -8/Garrison | Triggered checkpoint 13628 | -8/Garrison | Garrison Relay disabled 13659 | -8/Garrison | Build established: Mutant 13785 | -8/Garrison | Triggered checkpoint 13958 | -8/Garrison | Triggered checkpoint 13980 | -8/Garrison | Garrison Relay disabled 14209 | -8/Garrison | Build established: Scavenger-Gunner 14381 | -8/Garrison | Triggered checkpoint 14465 | -8/Garrison | Triggered checkpoint 14527 | -8/Garrison | Garrison Relay disabled 14593 | -8/Garrison | Triggered checkpoint 14650 | -8/Garrison | Garrison Relay disabled 14767 | -8/Garrison | Entered Materials 14767 | -8/Materials | Accompanied by 1 ally 15405 | -8/Materials | Discovered exit to Storage (range 14) 15668 | -8/Materials | Core integrity fell below 50% 15967 | -8/Materials | First assault squad dispatched 16388 | -8/Materials | Destroyed 7 combat bots 16443 | -8/Materials | Entered Storage 17041 | -8/Storage | Core integrity fell below 20% 17142 | -8/Storage | Repaired Hyp. Gauss Rifle 17357 | -8/Storage | Build established: Tank 17397 | -8/Storage | Garrison activated, responded to threat 17566 | -8/Storage | Identified exit to Garrison 17566 | -8/Storage | Entered Garrison 17608 | -8/Garrison | Triggered checkpoint 17953 | -8/Garrison | Build established: Scavenger-Tank 17973 | -8/Garrison | Triggered checkpoint 18184 | -8/Garrison | Triggered checkpoint 18222 | -8/Garrison | Garrison Relay disabled 18238 | -8/Garrison | Garrison Relay disabled 18325 | -8/Garrison | Discovered new exit (range 12) 18766 | -8/Garrison | Entered Recycling 18767 | -8/Recycling | Identified exit to Factory 18926 | -8/Recycling | Scanned before Scraplab entrance 18958 | -8/Recycling | Entered Scraplab 18976 | -8/Recycling | Discovered new exit (range 3) 18981 | -8/Recycling | Entered Scraptown 19202 | -8/Scraptown | Visited IN-MT5's Study 19232 | -8/Scraptown | Visited Assassins FH 19274 | -8/Scraptown | Visited The Evicted 19345 | -8/Scraptown | Discovered exit to Factory (range 11) 19619 | -8/Scraptown | Visited Cyclists 20066 | -8/Scraptown | Turned away by UFD registrar 20114 | -8/Scraptown | Visited Symbiants 20720 | -8/Scraptown | Entered Factory 20720 | -6/Factory | Evolved 4 slots: Power x1, Propulsion x1, Utility x2 20721 | -6/Factory | Identified exit to Factory 20721 | -6/Factory | Identified exit to Lower Caves 21191 | -6/Factory | Fabricated Thermic Laser? 21287 | -6/Factory | Spotted B-75 Beast 21305 | -6/Factory | Identified exit to Garrison 21305 | -6/Factory | Entered Garrison 21672 | -6/Garrison | Garrison Relay disabled 21729 | -6/Garrison | Spotted B-75 Beast 21757 | -6/Garrison | Triggered checkpoint 21888 | -6/Garrison | Destroyed B-75 Beast 22032 | -6/Garrison | Discovered new exit (range 13) 22089 | -6/Garrison | Triggered checkpoint 22144 | -6/Garrison | Garrison Relay disabled 22214 | -6/Garrison | Learned Factory security intel 22476 | -6/Garrison | Triggered checkpoint 22647 | -6/Garrison | Triggered checkpoint 22714 | -6/Garrison | Discovered new exit (range 13) 22859 | -6/Garrison | Garrison Relay disabled 23756 | -6/Garrison | Garrison Relay disabled 23930 | -6/Garrison | Discovered new exit (range 5) 23942 | -6/Garrison | Entered Factory 24035 | -6/Factory | Fabricated A-02 Transporter? 24129 | -6/Factory | Build established: Hauler-Tank 24292 | -6/Factory | First assault squad dispatched 25287 | -6/Factory | Discovered exit to Lower Caves (range 16) 25517 | -6/Factory | Core integrity fell below 50% 25563 | -6/Factory | Core integrity fell below 20% 25590 | -6/Factory | Lost 9 parts (2p3n4w) 25614 | -6/Factory | Entered Lower Caves 25615 | -6/Lower Caves | Identified exit to Lower Caves 25615 | -6/Lower Caves | YOLO Cannon stolen by Master Thief 25616 | -6/Lower Caves | Encountered a Master Thief 25621 | -6/Lower Caves | Met a Warlord Commander 25622 | -6/Lower Caves | Learned location of Warlord (-4) 25623 | -6/Lower Caves | Warlord Commander delivered Encrypted Comm Array 25629 | -6/Lower Caves | Found Encrypted Comm Array 25732 | -6/Lower Caves | Entered an active Warlord outpost 25761 | -6/Lower Caves | Learned 8 Factory zone layouts 25761 | -6/Lower Caves | Learned Armory trap positions 25776 | -6/Lower Caves | Destroyed X3-1CN(g) 25899 | -6/Lower Caves | Build established: Scavenger-Tank 25991 | -6/Lower Caves | A Derelict revealed a hidden shortcut to a safe place 26008 | -6/Lower Caves | Entered Zion 26079 | -6/Zion | Found Prototype Energy Gun 26091 | -6/Zion | Identified Storm Laser 26160 | -6/Zion | System corruption cleaned by Quarantine Array 26221 | -6/Zion | Found CR-A16's Pointy Stick 26515 | -6/Zion | Given A8's code to call for help 26797 | -6/Zion | Learned location of 1 exit from Factory 26814 | -6/Zion | Visited the Megawrench Repair Shop 26814 | -6/Zion | Megawrench repaired 9 parts 27063 | -6/Zion | Met Imprinter 27518 | -6/Zion | Enhanced Grunt warped into view, answering call for help 27531 | -6/Zion | Enhanced Grunt warped into view, answering call for help 27739 | -6/Zion | Attacked by Zionites 27829 | -6/Zion | Destroyed Imprinter 27838 | -6/Zion | Extracted access codes from Imprinter's data core 27854 | -6/Zion | Discovered new exit (range 15) 27883 | -6/Zion | Entered Proximity Caves 27883 | -5/Proximity Caves | Accompanied by 2 allies 27885 | -5/Proximity Caves | Greeted by an Infiltrator in a former 0b10 base 27958 | -5/Proximity Caves | Former 0b10 base attacked by MAIN.C 28077 | -5/Proximity Caves | Repaired Imp. Weapon Shielding 28164 | -5/Proximity Caves | Lost 4 allies 28283 | -5/Proximity Caves | 0b10 base defense nominally successful 28342 | -5/Proximity Caves | Lost 3 allies 28733 | -5/Proximity Caves | Attracted the attention of an 0b10 checkpoint 28936 | -5/Proximity Caves | Entered Factory 28936 | -5/Factory | Accompanied by 1 ally 28936 | -5/Factory | Evolved 2 slots: Propulsion x1, Utility x1 28937 | -5/Factory | Identified exit to Factory 29044 | -5/Factory | Fabricated Imp. Heavy Treads? 29494 | -5/Factory | Identified exit to Garrison 29494 | -5/Factory | Entered Garrison 29494 | -5/Garrison | Accompanied by 2 allies 29526 | -5/Garrison | Triggered checkpoint 29538 | -5/Garrison | Assembled breached garrison interior 29574 | -5/Garrison | Garrison Relay disabled 29888 | -5/Garrison | Discovered new exit (range 10) 29914 | -5/Garrison | Phase Generator disabled 29931 | -5/Garrison | Spotted Executioner 30000 | -5/Garrison | Destroyed Executioner 30064 | -5/Garrison | Garrison Relay disabled 30129 | -5/Garrison | Destroyed B-75 Beast 30167 | -5/Garrison | Garrison Relay disabled 30302 | -5/Garrison | Garrison Relay disabled 30484 | -5/Garrison | Garrison Relay disabled 30504 | -5/Garrison | Discovered new exit (range 12) 30575 | -5/Garrison | Garrison Relay disabled 30588 | -5/Garrison | Found embedded Infiltrators 30720 | -5/Garrison | Entered Extension 30720 | -5/Extension | Accompanied by 5 allies 31020 | -5/Extension | First assault squad dispatched 31100 | -5/Extension | Build established: Commander-Tank 31462 | -5/Extension | Spotted B-75 Beast 31469 | -5/Extension | Destroyed B-75 Beast 31487 | -5/Extension | Spotted B-75 Beast 31498 | -5/Extension | Destroyed B-75 Beast 31766 | -5/Extension | High security lockdown imminent 31805 | -5/Extension | Rescued A7 31846 | -5/Extension | High security lockdown engaged 31951 | -5/Extension | Found Prototype Protection 31965 | -5/Extension | Destroyed 13 combat bots 32052 | -5/Extension | Destroyed 12 combat bots 32066 | -5/Extension | Discovered exit to Factory (range 10) 32067 | -5/Extension | Discovered new exit (range 6) 32076 | -5/Extension | Entered Cetus 32076 | -5/Cetus | Accompanied by 1 ally (A7) 32079 | -5/Cetus | Identified Med. Regenerative Plating 32081 | -5/Cetus | Acquired a Cetus Manufacturing Module code from A7 32100 | -5/Cetus | Spotted Cetus Guard 32100 | -5/Cetus | Spotted Cetus Guard 32102 | -5/Cetus | Build established: Scavenger-Gunner 32104 | -5/Cetus | Destroyed Cetus Guard 32104 | -5/Cetus | Spotted Cetus Guard 32107 | -5/Cetus | Allies destroyed Cetus Guard 32107 | -5/Cetus | Destroyed Cetus Guard 32107 | -5/Cetus | Spotted Cetus Guard 32112 | -5/Cetus | Destroyed Cetus Guard 32141 | -5/Cetus | Lost 3 parts (1p2n) 32152 | -5/Cetus | System corruption reached 10% 32247 | -5/Cetus | Escorted A7 to Cetus Mainframe 32265 | -5/Cetus | Started Cetus Manufacturing Module 32290 | -5/Cetus | Manufactured an Enhanced Grunt 32315 | -5/Cetus | Manufactured an Enhanced Grunt 32340 | -5/Cetus | Manufactured an Enhanced Grunt 32365 | -5/Cetus | Manufactured an Enhanced Grunt 32369 | -5/Cetus | Discovered new exit (range 15) 32390 | -5/Cetus | Manufactured an Enhanced Grunt 32398 | -5/Cetus | Spotted Cetus Guard 32398 | -5/Cetus | Spotted Cetus Guard 32401 | -5/Cetus | Allies destroyed Cetus Guard 32401 | -5/Cetus | Spotted Cetus Guard 32403 | -5/Cetus | Destroyed Cetus Guard 32404 | -5/Cetus | Spotted Cetus Guard 32406 | -5/Cetus | Allies destroyed Cetus Guard 32407 | -5/Cetus | Destroyed Cetus Guard 32436 | -5/Cetus | Discovered exit to Factory (range 15) 32444 | -5/Cetus | Met Revision 17 32560 | -5/Cetus | Murdered A7 32563 | -5/Cetus | Extracted ID and sensor layout for unrecognized location from A7's data core 32581 | -5/Cetus | Entered Archives 32581 | -5/Archives | Accompanied by 4 allies 32676 | -5/Archives | Discovered new exit (range 16) 32700 | -5/Archives | Discovered exit to Factory (range 15) 32884 | -5/Archives | Discovered new exit (range 13) 32977 | -5/Archives | Build established: Scavenger-Mutant 36131 | -5/Archives | Entered Hub_04(d) 36131 | -5/Hub_04(d) | Accompanied by 4 allies 36193 | -5/Hub_04(d) | Discovered exit to Factory (range 15) 36261 | -5/Hub_04(d) | Identified exit to Garrison 36312 | -5/Hub_04(d) | Build established: Scavenger-Tank 36731 | -5/Hub_04(d) | First assault squad dispatched 36751 | -5/Hub_04(d) | Network Hub disabled 36776 | -5/Hub_04(d) | Spotted Lightning 36921 | -5/Hub_04(d) | Spotted Lightning 36923 | -5/Hub_04(d) | Spotted Lightning 36927 | -5/Hub_04(d) | Spotted Lightning 36941 | -5/Hub_04(d) | Destroyed Lightning 36943 | -5/Hub_04(d) | Destroyed Lightning 36956 | -5/Hub_04(d) | Destroyed Lightning 36971 | -5/Hub_04(d) | Found Prototype Device 36971 | -5/Hub_04(d) | Identified Exp. Phase Shifter 36974 | -5/Hub_04(d) | Found Prototype Device 36977 | -5/Hub_04(d) | Identified Exp. EM Shield 36986 | -5/Hub_04(d) | Found Exp. EM Shield 37006 | -5/Hub_04(d) | Found Prototype Energy Cannon 37011 | -5/Hub_04(d) | Found Exp. Targeting Computer 37067 | -5/Hub_04(d) | Network Hub disabled 37198 | -5/Hub_04(d) | Entered Garrison 37316 | -5/Garrison | Identified EMDS 37434 | -5/Garrison | Triggered checkpoint 37457 | -5/Garrison | Spotted Striker 37467 | -5/Garrison | Destroyed Striker 37496 | -5/Garrison | Rewired Executioner 37535 | -5/Garrison | Garrison Relay disabled 37596 | -5/Garrison | Triggered checkpoint 37685 | -5/Garrison | Discovered exit to Factory (range 8) 37767 | -5/Garrison | Garrison Relay disabled 37781 | -5/Garrison | Triggered checkpoint 37808 | -5/Garrison | Garrison Relay disabled 37868 | -5/Garrison | Rescued a captive Derelict 38039 | -5/Garrison | Triggered checkpoint 38071 | -5/Garrison | Garrison Relay disabled 38125 | -5/Garrison | Discovered exit to Factory (range 14) 38206 | -5/Garrison | Triggered checkpoint 38308 | -5/Garrison | Triggered checkpoint 38323 | -5/Garrison | Garrison Relay disabled 38448 | -5/Garrison | Discovered exit to Factory (range 10) 38484 | -5/Garrison | Triggered checkpoint 38516 | -5/Garrison | Triggered checkpoint 38520 | -5/Garrison | Garrison Relay disabled 38778 | -5/Garrison | Triggered checkpoint 38869 | -5/Garrison | Garrison Relay disabled 38871 | -5/Garrison | Garrison Relay disabled 38879 | -5/Garrison | Garrison Relay disabled 38894 | -5/Garrison | Garrison Relay disabled 39418 | -5/Garrison | Build established: Commander-Tank 39480 | -5/Garrison | Entered Factory 39480 | -4/Factory | Accompanied by 10 allies 39480 | -4/Factory | Evolved 2 slots: Utility x2 39533 | -4/Factory | Discovered new exit (range 5) 39564 | -4/Factory | Found Prototype Device 39564 | -4/Factory | Identified Active Sensor Suite 39565 | -4/Factory | Identified exit to Research 39595 | -4/Factory | Lost 3 allies 39709 | -4/Factory | Joined by Warlord Ghost squad 39730 | -4/Factory | First assault squad dispatched 39769 | -4/Factory | Build established: Commander-Gunner 39932 | -4/Factory | Destroyed 7 combat bots 39941 | -4/Factory | Lost 3 allies 39961 | -4/Factory | Discovered new exit (range 16) 40032 | -4/Factory | P-70 Sage assimilated allied Soldier 6f 40084 | -4/Factory | High security lockdown imminent 40135 | -4/Factory | Destroyed 7 combat bots 40164 | -4/Factory | High security lockdown engaged 40276 | -4/Factory | Entered Upper Caves 40276 | -4/Upper Caves | Accompanied by 1 ally 40346 | -4/Upper Caves | Build established: Scavenger-Tank 40365 | -4/Upper Caves | Spotted B-86 Titan 40536 | -4/Upper Caves | Learned location of Testing (-2) 40675 | -4/Upper Caves | Learned 4 Research zone layouts 40920 | -4/Upper Caves | Discovered new exit (range 14) 40991 | -4/Upper Caves | Entered another Upper Caves area 40991 | -4/Upper Caves | Accompanied by 1 ally 41043 | -4/Upper Caves | Spotted B-86 Titan 41055 | -4/Upper Caves | Destroyed B-86 Titan 41302 | -4/Upper Caves | Attracted the attention of an 0b10 checkpoint 41573 | -4/Upper Caves | Learned location of 1 exit from Research 41632 | -4/Upper Caves | Discovered new exit (range 11) 41677 | -4/Upper Caves | Entered Warlord 41677 | -4/Warlord | Accompanied by 1 ally 41730 | -4/Warlord | System corruption cleaned by Quarantine Array 42015 | -4/Warlord | Learned Quarantine emergency access door positions 42015 | -4/Warlord | Learned Armory stockpile data 42015 | -4/Warlord | Learned 4 Research zone layouts 42015 | -4/Warlord | Learned 4 Access zone layouts 42015 | -4/Warlord | Learned 4 Access zone layouts 42015 | -4/Warlord | Learned 4 Testing zone layouts 42018 | -4/Warlord | Learned Testing security intel 42283 | -4/Warlord | Found Prototype Reactor 42283 | -4/Warlord | Identified Vortex Chain Reactor 42295 | -4/Warlord | Found Prototype Device 42295 | -4/Warlord | Identified Thermal Barrier 42299 | -4/Warlord | Found Prototype Processor 42299 | -4/Warlord | Identified Exp. Armor Integrity Analyzer 42339 | -4/Warlord | Found Prototype Hackware 42409 | -4/Warlord | Received a Watcher feed algorithm from an ecstatic Tinkerer 42410 | -4/Warlord | Ran a Watcher feed algorithm 42475 | -4/Warlord | Warlord's base attacked by MAIN.C 42522 | -4/Warlord | Met Warlord 42636 | -4/Warlord | Found Prototype Energy Cannon 42636 | -4/Warlord | Identified Vortex Cannon 42649 | -4/Warlord | Found Vortex Cannon 42652 | -4/Warlord | Found Prototype Piercing Weapon 42653 | -4/Warlord | Identified Vortex Lance 42825 | -4/Warlord | Warlord forces counterattacked 42860 | -4/Warlord | Spotted Striker 42887 | -4/Warlord | Spotted Striker 42913 | -4/Warlord | Spotted Executioner 42914 | -4/Warlord | Spotted Executioner 42927 | -4/Warlord | Lost 5 allies 42980 | -4/Warlord | Spotted Executioner 42984 | -4/Warlord | Lost 3 allies 43024 | -4/Warlord | Found Exp. Core Analyzer 43062 | -4/Warlord | Lost 10 allies 43076 | -4/Warlord | Spotted Executioner 43083 | -4/Warlord | Spotted Executioner 43087 | -4/Warlord | Destroyed Executioner 43123 | -4/Warlord | Destroyed 7 combat bots 43135 | -4/Warlord | Lost 5 allies 43150 | -4/Warlord | Warlord base infiltrated, sounded retreat 43177 | -4/Warlord | Spotted Striker 43234 | -4/Warlord | Lost 5 allies 43249 | -4/Warlord | Discovered new exit (range 15) 43283 | -4/Warlord | Spotted Striker 43289 | -4/Warlord | Entered Proximity Caves 43405 | -3/Proximity Caves | Spotted B-86 Titan 43418 | -3/Proximity Caves | Destroyed B-86 Titan 43696 | -3/Proximity Caves | Discovered exit to Research (range 5) 43707 | -3/Proximity Caves | Entered Research 43707 | -3/Research | Evolved 2 slots: Power x1, Utility x1 43708 | -3/Research | Identified exit to Research 43782 | -3/Research | Identified Ghost Barrier 43863 | -3/Research | Watched by a mysterious "MATRIX" hacker 43907 | -3/Research | Revision forces began assault on 0b10 44028 | -3/Research | Spotted B-86 Titan 44052 | -3/Research | Destroyed B-86 Titan 44158 | -3/Research | Fabricated Imp. Heavy Treads? 44407 | -3/Research | Research terminal network offline 44481 | -3/Research | Repaired Centrium Heavy Treads 44899 | -3/Research | Spotted Striker 44900 | -3/Research | Spotted Executioner 44900 | -3/Research | Spotted Striker 44902 | -3/Research | Discovered new exit (range 12) 44907 | -3/Research | Destroyed Executioner 44915 | -3/Research | Destroyed Striker 44928 | -3/Research | Destroyed Striker 44980 | -3/Research | Destroyed 8 combat bots 44999 | -3/Research | Entered Quarantine 45015 | -3/Quarantine | Found Alien Reactor 45042 | -3/Quarantine | Found Alien Slashing Weapon 45042 | -3/Quarantine | Identified Sigix Broadsword 45225 | -3/Quarantine | Found Alien Artifact 45226 | -3/Quarantine | Identified Phase Redirector 45351 | -3/Quarantine | Build established: Scavenger-Mutant 45407 | -3/Quarantine | Found Alien Impact Weapon 45528 | -3/Quarantine | Found Alien Artifact 45539 | -3/Quarantine | Found Alien Artifact 45543 | -3/Quarantine | Found Alien Artifact 45543 | -3/Quarantine | Identified Dimensional Node Initializer (x2) 45543 | -3/Quarantine | Initialized slip node 45561 | -3/Quarantine | Found Alien Artifact 45561 | -3/Quarantine | Identified Transdimensional Reconstructor 45561 | -3/Quarantine | Warped through subspace to slip node 45572 | -3/Quarantine | Found Alien Artifact 45572 | -3/Quarantine | Identified Hpw. Transdimensional Reconstructor (x2) 45572 | -3/Quarantine | Warped through subspace to slip node 45584 | -3/Quarantine | Found Transdimensional Reconstructor 45629 | -3/Quarantine | Unchained authorized (1B-0RG) 45838 | -3/Quarantine | Discovered exit to Research (range 9) 46017 | -3/Quarantine | Initialized slip node 46018 | -3/Quarantine | Spotted 1B-0RG 46019 | -3/Quarantine | Attached CPS modules to 1B-0RG 46024 | -3/Quarantine | Identified Core Stripper 46114 | -3/Quarantine | Warped through subspace to slip node 46119 | -3/Quarantine | Found Dimensional Node Initializer 46145 | -3/Quarantine | Core integrity fell below 50% 46201 | -3/Quarantine | Lost 5 parts (1p1n2u1w) 46255 | -3/Quarantine | Destroyed 1B-0RG 46298 | -3/Quarantine | Found Prototype Special Melee Weapon 46364 | -3/Quarantine | Build established: Scavenger-Tank 46429 | -3/Quarantine | Scanned by Researcher 46459 | -3/Quarantine | Found Quantum Capacitor 46517 | -3/Quarantine | Found Alien Artifact 47151 | -3/Quarantine | Spotted Fortress 47161 | -3/Quarantine | Attached CPS modules to Fortress 47161 | -3/Quarantine | Destroyed Fortress 47171 | -3/Quarantine | Found Vortex Chain Reactor 47185 | -3/Quarantine | Found Exp. EM Shield 47193 | -3/Quarantine | Found Prototype Device 47193 | -3/Quarantine | Identified Exp. Force Field 47201 | -3/Quarantine | Found Thermal Barrier 47206 | -3/Quarantine | Found Vortex Chain Reactor 47212 | -3/Quarantine | Found Prototype Protection 47212 | -3/Quarantine | Identified Centrium Heavy Armor Plating 47225 | -3/Quarantine | Identified Matter Drive 47371 | -3/Quarantine | Discovered new exit (range 6) 47371 | -3/Quarantine | Discovered new exit (range 7) 47379 | -3/Quarantine | Entered Section 7 47407 | -3/Section 7 | System corruption reached 10% 47576 | -3/Section 7 | Scanned by Researcher 47825 | -3/Section 7 | Spotted S7 Guard 47879 | -3/Section 7 | First assault squad dispatched 48041 | -3/Section 7 | Destroyed S7 Guard 48130 | -3/Section 7 | Found Alien Artifact 48130 | -3/Section 7 | Identified Core Regenerator 48130 | -3/Section 7 | Used Core Regenerator, restored core integrity (+325) 48226 | -3/Section 7 | Found Alien Artifact 48330 | -3/Section 7 | Spotted Alpha 7 48345 | -3/Section 7 | Spotted Alpha 7 48347 | -3/Section 7 | Garrison activated, responded to threat 48356 | -3/Section 7 | Destroyed Alpha 7 48386 | -3/Section 7 | Destroyed Alpha 7 48534 | -3/Section 7 | Destroyed 11 combat bots 48669 | -3/Section 7 | Lost 3 parts (1p1u1w) 48674 | -3/Section 7 | Spotted B-99 Colossus 48741 | -3/Section 7 | Found Alien Artifact 48741 | -3/Section 7 | Identified Integrity Redistributor 48741 | -3/Section 7 | Used Integrity Redistributor, redistributed integrity from core (-340) 48747 | -3/Section 7 | Found Integrity Redistributor 48809 | -3/Section 7 | Found Alien Artifact 48809 | -3/Section 7 | Identified LRC Matter Compressor 48809 | -3/Section 7 | Installed LRC Matter Compressor, increased matter storage capacity (+125) 48818 | -3/Section 7 | Found Alien Artifact 48818 | -3/Section 7 | Identified LRC Storage 48818 | -3/Section 7 | Installed LRC Storage, increased inventory capacity (+2) 48932 | -3/Section 7 | Intercept squad dispatched 48946 | -3/Section 7 | Spotted Tracker 48966 | -3/Section 7 | Destroyed Tracker 48993 | -3/Section 7 | Destroyed B-99 Colossus 48993 | -3/Section 7 | Spotted Combat Programmer 49099 | -3/Section 7 | Spotted Executioner 49137 | -3/Section 7 | Found Transdimensional Reconstructor 49140 | -3/Section 7 | Found Transdimensional Reconstructor 49155 | -3/Section 7 | Found Alien Artifact 49204 | -3/Section 7 | Spotted Executioner 49344 | -3/Section 7 | Core integrity fell below 20% 49349 | -3/Section 7 | Destroyed Executioner 49353 | -3/Section 7 | Destroyed Executioner 49401 | -3/Section 7 | Found Alien Artifact 49472 | -3/Section 7 | Entered Research 49472 | -2/Research | Warlord forces began assault on 0b10 49472 | -2/Research | Evolved 2 slots: Weapon x2 49497 | -2/Research | Distinguished unit "Bridgeowners Association" dispatched to help 49497 | -2/Research | Distinguished unit "Knights of the Pentagonal Table" dispatched to help 49582 | -2/Research | Research machine network offline 49822 | -2/Research | Borebot progress halted 49978 | -2/Research | Discovered new exit (range 88) 50033 | -2/Research | Build established: Scavenger-Executioner 50045 | -2/Research | Discovered new exit (range 53) 50052 | -2/Research | Discovered new exit (range 107) 50200 | -2/Research | Spotted Striker 50220 | -2/Research | Borebot progress halted 50249 | -2/Research | Borebot progress halted 50520 | -2/Research | Spotted Executioner 50546 | -2/Research | Found Prototype Launcher 50546 | -2/Research | Identified Adv. Micro-nuke Launcher 50551 | -2/Research | Found Adv. Micro-nuke Launcher 50554 | -2/Research | Found Adv. Micro-nuke Launcher 50645 | -2/Research | Found Exp. Core Analyzer 50673 | -2/Research | Met up with Warlord 50675 | -2/Research | Warlord invited to help at Command 50675 | -2/Research | Given Cave Seal Controls access code 50676 | -2/Research | Met DD-05H 50748 | -2/Research | Discovered new exit (range 21) 50842 | -2/Research | Entered Access 50842 | -1/Access | Evolved 2 slots: Utility x2 50846 | -1/Access | Identified 1B-0RG's Assimilator 50963 | -1/Access | Spotted B-99 Colossus 50993 | -1/Access | Lost 3 allies 51018 | -1/Access | Garrison activated, responded to threat 51126 | -1/Access | Lost 6 allies 51128 | -1/Access | Build established: Scavenger-Mutant 51163 | -1/Access | Assimilating Master 10a into Collective 51226 | -1/Access | Assimilating Master 10b into Collective 51237 | -1/Access | Assimilating Master 10c into Collective 51240 | -1/Access | Assimilating Serf 10a into Collective 51243 | -1/Access | Assimilating Warden 10a into Collective 51259 | -1/Access | Assimilating Terminator 10a into Collective 51300 | -1/Access | Lost 5 allies 51322 | -1/Access | Assimilating Terminator 10b into Collective 51343 | -1/Access | Assimilating Processor 10a into Collective 51348 | -1/Access | Assimilating Processor 10b into Collective 51381 | -1/Access | Found Prototype Ballistic Gun 51381 | -1/Access | Identified Multirail 51420 | -1/Access | Assimilating Terminator 10c into Collective 51444 | -1/Access | Assimilating Enforcer 10a into Collective 51468 | -1/Access | Assimilating Enforcer 10b into Collective 51483 | -1/Access | Found Prototype Device 51483 | -1/Access | Identified Adv. Kinecellerator 51492 | -1/Access | Assimilating Enforcer 10c into Collective 51501 | -1/Access | Lost 3 allies 51512 | -1/Access | Assimilating Enforcer 10d into Collective 51646 | -1/Access | Assimilating Artificer 10a into Collective 51665 | -1/Access | Assimilating Master 10d into Collective 51704 | -1/Access | Assimilating Enforcer 10e into Collective 51745 | -1/Access | Assimilating Conveyor 10a into Collective 51897 | -1/Access | Identified Integrated Dissipator (x2) 51898 | -1/Access | Identified Subatomic Replicator 51898 | -1/Access | Used Subatomic Replicator to create Alien Artifact 51901 | -1/Access | Identified Supercharged Integrated Dissipator 51901 | -1/Access | Installed Supercharged Integrated Dissipator, increased core heat dissipation (+40) 51902 | -1/Access | Installed Integrated Dissipator, increased core heat dissipation (+20) 51954 | -1/Access | Found Prototype Device 51955 | -1/Access | Identified Exp. Thermal Shield 52014 | -1/Access | Assimilating Terminator 10d into Collective 52026 | -1/Access | Allied Derelicts emerged from ambush trap array 52207 | -1/Access | Intercept squad dispatched 52211 | -1/Access | Spotted Tracker 52212 | -1/Access | Spotted Tracker 52214 | -1/Access | Allies destroyed Tracker 52221 | -1/Access | Allies destroyed Tracker 52240 | -1/Access | Found Exp. Targeting Computer 52243 | -1/Access | Found Exp. Phase Shifter 52253 | -1/Access | Spotted Combat Programmer 52254 | -1/Access | Spotted Combat Programmer 52257 | -1/Access | Assimilating Processor 10c into Collective 52259 | -1/Access | Lost 4 allies 52267 | -1/Access | Allies destroyed Combat Programmer 52281 | -1/Access | Allies destroyed Combat Programmer 52356 | -1/Access | Assimilating Director 10a into Collective 52403 | -1/Access | Assimilating Terminator 10e into Collective 52628 | -1/Access | High security lockdown imminent 52708 | -1/Access | High security lockdown engaged 52739 | -1/Access | Spotted B-99 Colossus 52739 | -1/Access | Spotted B-99 Colossus 52758 | -1/Access | Assimilating Swordsman 10a into Collective 52771 | -1/Access | Assimilating Swordsman 10b into Collective 52822 | -1/Access | Allies destroyed B-99 Colossus 52834 | -1/Access | Assimilating Serf 10b into Collective 52853 | -1/Access | Warped through subspace 52884 | -1/Access | Lost 3 allies 52889 | -1/Access | Intercept squad dispatched 52895 | -1/Access | Assimilating Conveyor 10b into Collective 52914 | -1/Access | Spotted Tracker 52914 | -1/Access | Spotted Tracker 52914 | -1/Access | Spotted Tracker 52919 | -1/Access | Destroyed Tracker 52925 | -1/Access | Destroyed Tracker 52925 | -1/Access | Destroyed Tracker 52959 | -1/Access | Destroyed 8 combat bots 52961 | -1/Access | Crushed by falling debris 52969 | -1/Access | Crushed by falling debris 52972 | -1/Access | Spotted Combat Programmer 52974 | -1/Access | Spotted Combat Programmer 52974 | -1/Access | Spotted Combat Programmer 53006 | -1/Access | Destroyed Combat Programmer 53010 | -1/Access | Destroyed Combat Programmer 53018 | -1/Access | Assimilating Enforcer 10f into Collective 53021 | -1/Access | System corruption reached 10% 53027 | -1/Access | Used Integrity Redistributor, redistributed integrity from core (-439) 53028 | -1/Access | Core integrity fell below 50% 53036 | -1/Access | Destroyed Combat Programmer 53038 | -1/Access | Assimilating Enforcer 10g into Collective 53041 | -1/Access | Assimilating Enforcer 10h into Collective 53044 | -1/Access | Assimilating Enforcer 10i into Collective 53047 | -1/Access | Assimilating Enforcer 10j into Collective 53088 | -1/Access | Identified Terrabomb 53088 | -1/Access | Used Terrabomb 53088 | -1/Access | Spotted Executioner 53092 | -1/Access | Core integrity fell below 20% 53100 | -1/Access | Discovered new exit (range 7) 53102 | -1/Access | Allies destroyed Executioner 53172 | -1/Access | Assimilating Champion 10a into Collective 53178 | -1/Access | Destroyed B-99 Colossus 53189 | -1/Access | Lost 3 allies 53198 | -1/Access | Spotted Striker 53199 | *** | Escaped! Last Messages --------------- 53178_ ALERT: Heavy assault forces dispatched. 53178_ U-05 Engineer builds a Reinforced Barrier. 53178_ B-99 Colossus suffers critical hit (Meltdown). 53180_ U-05 Engineer builds a Reinforced Barrier. 53183_ G-73 Enforcer destroyed. 53184_ Exp. Utility Shielding destroyed. 53185_ U-05 Engineer builds a Reinforced Barrier. 53186_ U-05 Engineer destroyed. 53190_ System corrupted: Component data lost. 53193_ G-73 Enforcer destroyed. 53197_ The unstable cave ceiling collapses. 53197_ P-80 Master crushed by falling debris. 53197_ P-80 Master system corrupted by crushing effect. 53198_ Borg Champion 10a assimilation complete, grew Sfc. Borg Laser (x2), Sfc. Sightfinder. 53198_ C-45 Heavy ARC bursts open, deploying its payload. 53198_ P-80 Master unfolds itself. 53198_ Borg Champion 10a shuts down. 53198_ Reactivated Borg Champion 10a. [Achievement: Slow And Deadly Wins The Race] Map ----- +----------------------------------------------------+ | ?????????????????????????????????????????????????? | | ?????????????????????????????????????????????????? | | ?????????????????????????????????????????????????? | | ?????????????????????????????????????????????????? | | ?????????????????????????????????????????????????? | | ?????????????????????????????????????????????????? | | ?????????????????????????????????????????????????? | | ?????????????????????????? ?????????????????????? | | ????????????????????????? """"""????????????????? | | ????????????????????????# """"?????????????????? | | ######??????????????????# ?????????????????? | | ??????????????????? ??????###????????? | | ??????????????????? ?????? ????????? | | ???????????????????? ?????# ????????? | | ??????????????????? ?????# #????????? | | " ""#??????????????????? ?????+ #????????? | | ""#??????????????##??? ??????# #????????? | | ""#?????????????# ??? ????? " #????????? | | T"#????????????? ???"""""????""" ###??????? | | """##???????????? ???? ""??? " " ##?????? | | "" "#??########??"""??##""""##""""" " #???""" | | #??? % "??" ??? " " "#??""" | | #### % % "??" ???? " " "??""" | | #"" % "??" """""" " " ??? """ | | % "??" " " " " ?" """ | | * % % ! "??" " "@ " " ; " ? | | ! ! % %= "?"" "" " " " ? | | = % %*! """*%b!!! " " """"#? | | * """ % " *%%!%*"" " " ## | | [ % " % % K "=%%%![ u """" """ " # | | #### p%p ""[%%=!! C """"T" " # | | ##?#;;#####""##########;"""""""" " # | | % #??# ;;; " " # | | #??# """"""""%;;;"""" " # | | #??# " "==[= " """""""""# | | #?# " %/%== ;" " ] | | #?## " |![%! +%"" | | #??# " ! * "" " * | | #??# "* "*!" | | #??# " [%!"[ """"" | | #??# """""""""""";;;==!" """"" | | ########## """""""""";;;;% " """"" | | ##? ### " ; "* """"" | | # #?# " + +! %""""" | | !# #### " !" """"""""*" | | =+ "#?# " " | [! [=== | | !# ##?## " " [=!! [ | | # #???# " " # #=[ | | ##?######???## " ### | | #????????????## =*! % # % #?# | +----------------------------------------------------+ Best States ------------- Heat Dissipation 142 Coolant Potential 80 Energy Generation 79 Energy Capacity 1550 Matter Stores 925 Matter Capacity 925 Sight Range 23 Terrain Scan Range 16 Terrain Scan Density 10 Jamming Range 16 Armor Coverage 1200 Resistance: TH 50 Resistance: EM 75 Utility Shielding 90 Weapon Shielding 90 Weapon Cycling 25 Phase Shifting 20 Evasion (%) 60 Targeting Accuracy 12 Core Analysis 8 Armor Integrity Analysis 50 Recoil Reduction 6 Matter Filtering 50 Particle Charging 20 Offensive Hacking 12 Defensive Hacking 20 Authchip Count 1 Trap Extractor Capacity 6 Item Schematics ----------------- Huge Storage Unit | -10/Materials | Hacked Imp. Treads | -9/Materials | Scanalyzed Med. Armor Plating | -9/Materials | Scanalyzed Com. Wheel | -9/Materials | Extracted Disposable Heat Sink | -9/Materials | Extracted System Purifier | -8/Materials | Scanalyzed Hyp. Gauss Rifle | -8/Materials | Scanalyzed Imp. Heavy Treads | -6/Factory | Scanalyzed Exp. Cooling System | -3/Quarantine | Archive Adv. Myomer Leg | -3/Quarantine | Archive Hvy. Proton Cannon | -3/Quarantine | Archive Exp. Optical Array | -3/Quarantine | Archive Prc. Energy Filter | -3/Quarantine | Archive Multireflex Exoskeleton | -3/Quarantine | Archive Prc. Phase Gun | -3/Quarantine | Archive Centrium Greatsword | -3/Quarantine | Archive Exp. Heat Sink | -3/Quarantine | Archive Enh. Fission Core | -3/Quarantine | Archive Com. Mass Driver | -3/Quarantine | Archive Centrium Medium Armor Plating | -3/Quarantine | Archive Helical Railgun | -3/Quarantine | Archive Exp. System Shield | -3/Quarantine | Archive Diametric Drive | -3/Quarantine | Archive Adv. Dynamic Insulation System | -3/Section 7 | Archive Ionic Axe | -3/Section 7 | Archive Plasma Sword | -3/Section 7 | Archive Robot Schematics ------------------ M-13 Machinist | -10/Materials | Hacked G-67 Veteran | -3/Quarantine | Archive K-01 Serf | -3/Quarantine | Archive Fabricated ------------ Thermic Laser | x2 | -6/Factory | Preloaded A-02 Transporter | x1 | -6/Factory | Preloaded Imp. Heavy Treads | x1 | -5/Factory | Authchip Imp. Heavy Treads | x1 | -3/Research | Authchip Repaired ---------- Lgt. Treads | 37% | -10/Materials Imp. Assault Rifle | 40% | -9/Materials Imp. Treads | 10% | -9/Materials Imp. Treads | 47% | -9/Materials Hyp. Gauss Rifle | 11% | -8/Storage Imp. Weapon Shielding | 50% | -5/Proximity Caves Centrium Heavy Treads | 15% | -3/Research Studied --------- Hvy. Assault Rifle | -9/Materials | Hacked Assault Rifle | -9/Materials | Hacked Imp. Treads | -8/Materials | Hacked Thermic Laser | -6/Factory | Hacked Great Axe | -6/Factory | Hacked Alien Tech Used ----------------- Sigix Broadsword Phase Redirector Dimensional Node Initializer Transdimensional Reconstructor High-powered Transdimensional Reconstructor Core Stripper Matter Drive Core Regenerator Integrity Redistributor LRC Matter Compressor LRC Storage Subatomic Replicator Supercharged Integrated Dissipator Integrated Dissipator Terrabomb Achievements -------------- Slow And Deadly Wins The Race Special Forces Challenges ------------ None Game ------ Seed ArmageddonDirectedClaw Manual? 0 Play Time 08:30:15 Cumulative 1817.1 hours Start 2026.09.13 @ 12:33:13 End 2026.09.13 @ 21:16:01 Sessions 1 Manual Loads 0 Difficulty Rogue Special Mode None Game No. 548 Rogue 540 Adventurer 4 Explorer 4 Win Type 0 Total 77 Types 32/12/6/4/2/5/9/2/3/2 Lore% 98 Gallery% 96 Achievement% 93 Wizard Run 0 Options --------- Layout 0 ASCII 0 Keyboard 0 Movement Numpad Keybinds 0 Fullscreen 2 Font 18/SmallcapsGlow Map View 76x50 Zoom Use 3% Tactical HUD 1 Map Filters NONE Filters NONE Steam 1 RUN: 89586ba9-4390-42cf-8522-a6343b6fc37a